DepartmentFamily,Entity,Date,ExpenseType,ExpenseArea,Supplier,TransactionNumber,Amount,VATRegistrationNo
BIS,The Insolvency Service,01/04/2014,Accommodation,ESTATES,A10 LIMITED,BA0000273942,"70,000.00",879668242
BIS,The Insolvency Service,07/04/2014,Accommodation,ESTATES,A10 LIMITED,BA0000274203,"12,936.26",879668242
BIS,The Insolvency Service,07/04/2014,Accommodation,ESTATES,A10 LIMITED,BA0000274203,487.27,879668242
BIS,The Insolvency Service,04/04/2014,Postage,OFFICIAL RECEIVER SERVICES                                                                          ,ABACUS EXPRESS,BA0000274118,31.71,417924146
BIS,The Insolvency Service,09/04/2014,Postage,OFFICIAL RECEIVER SERVICES                                                                          ,ABACUS EXPRESS,BA0000274329,14.51,417924146
BIS,The Insolvency Service,11/04/2014,Postage,OFFICIAL RECEIVER SERVICES                                                                          ,ABACUS EXPRESS,BA0000274417,14.51,417924146
BIS,The Insolvency Service,30/04/2014,Postage,OFFICIAL RECEIVER SERVICES                                                                          ,ABACUS EXPRESS,BA0000274846,18.81,417924146
BIS,The Insolvency Service,09/04/2014,Agency Workers,FINANCE AND COMMERCIAL,ALLEN LANE LIMITED,BA0000274347,"2,363.46",
BIS,The Insolvency Service,09/04/2014,Agency Workers,FINANCE AND COMMERCIAL,ALLEN LANE LIMITED,BA0000274348,"3,311.16",
BIS,The Insolvency Service,09/04/2014,Agency Workers,FINANCE AND COMMERCIAL,ALLEN LANE LIMITED,BA0000274349,"2,675.52",
BIS,The Insolvency Service,14/04/2014,Agency Workers,FINANCE AND COMMERCIAL,ALLEN LANE LIMITED,BA0000274500,"8,620.20",
BIS,The Insolvency Service,23/04/2014,Agency Workers,FINANCE AND COMMERCIAL,ALLEN LANE LIMITED,BA0000274644,"2,675.52",
BIS,The Insolvency Service,23/04/2014,Agency Workers,FINANCE AND COMMERCIAL,ALLEN LANE LIMITED,BA0000274645,"2,675.52",
BIS,The Insolvency Service,23/04/2014,Agency Workers,FINANCE AND COMMERCIAL,ALLEN LANE LIMITED,BA0000274646,"3,311.16",
BIS,The Insolvency Service,23/04/2014,Agency Workers,FINANCE AND COMMERCIAL,ALLEN LANE LIMITED,BA0000274647,"1,909.49",
BIS,The Insolvency Service,25/04/2014,Agency Workers,FINANCE AND COMMERCIAL,ALLEN LANE LIMITED,BA0000274702,"6,896.16",
BIS,The Insolvency Service,29/04/2014,Agency Workers,FINANCE AND COMMERCIAL,ALLEN LANE LIMITED,BA0000274753,"2,140.42",
BIS,The Insolvency Service,29/04/2014,Agency Workers,Strategy Planning and Communications,ALLEN LANE LIMITED,BA0000274754,"2,648.93",
BIS,The Insolvency Service,30/04/2014,Agency Workers,FINANCE AND COMMERCIAL,ALLEN LANE LIMITED,BA0000274876,"4,310.10",
BIS,The Insolvency Service,30/04/2014,Agency Workers,FINANCE AND COMMERCIAL,ALLEN LANE LIMITED,BA0000274877,"1,724.04",
BIS,The Insolvency Service,30/04/2014,Agency Workers,FINANCE AND COMMERCIAL,ALLEN LANE LIMITED,BA0000274878,"3,879.10",
BIS,The Insolvency Service,30/04/2014,Agency Workers,"PLANNING, PERFORMANCE & PROJECTS                                                                    ",ALLEN LANE LIMITED,BA0000274872,"2,363.46",
BIS,The Insolvency Service,30/04/2014,Agency Workers,"PLANNING, PERFORMANCE & PROJECTS                                                                    ",ALLEN LANE LIMITED,BA0000274873,"2,363.46",
BIS,The Insolvency Service,30/04/2014,Agency Workers,"PLANNING, PERFORMANCE & PROJECTS                                                                    ",ALLEN LANE LIMITED,BA0000274874,"2,599.81",
BIS,The Insolvency Service,01/04/2014,Employee Related Costs,PEOPLE & CAPABILITY                                                                                 ,AMAZON.CO.UK LTD,BA0000274739,55.19,727255821
BIS,The Insolvency Service,01/04/2014,Office Supplies and Services,OFFICIAL RECEIVER SERVICES                                                                          ,AMAZON.CO.UK LTD,BA0000274739,341.88,727255821
BIS,The Insolvency Service,01/04/2014,Office Supplies and Services,INFORMATION TECHNOLOGY                                                                              ,AMAZON.CO.UK LTD,BA0000274739,50.89,727255821
BIS,The Insolvency Service,01/04/2014,Office Supplies and Services,INFORMATION TECHNOLOGY                                                                              ,AMAZON.CO.UK LTD,BA0000274739,465.96,727255821
BIS,The Insolvency Service,01/04/2014,Office Supplies and Services,INVESTIGATION & ENFORCEMENT SERVICES                                                                ,AMAZON.CO.UK LTD,BA0000274739,47.79,727255821
BIS,The Insolvency Service,01/04/2014,Office Supplies and Services,"PLANNING, PERFORMANCE & PROJECTS                                                                    ",AMAZON.CO.UK LTD,BA0000274739,41.2,727255821
BIS,The Insolvency Service,01/04/2014,Office Supplies and Services,"PLANNING, PERFORMANCE & PROJECTS                                                                    ",AMAZON.CO.UK LTD,BA0000274739,89.58,727255821
BIS,The Insolvency Service,01/04/2014,Office Supplies and Services,PEOPLE & CAPABILITY                                                                                 ,AMAZON.CO.UK LTD,BA0000274739,38.92,727255821
BIS,The Insolvency Service,01/04/2014,Office Supplies and Services,INVESTIGATION & ENFORCEMENT SERVICES                                                                ,AMAZON.CO.UK LTD,BA0000274739,41.97,727255821
BIS,The Insolvency Service,01/04/2014,Office Supplies and Services,INFORMATION TECHNOLOGY                                                                              ,AMAZON.CO.UK LTD,BA0000274739,3.98,727255821
BIS,The Insolvency Service,01/04/2014,Office Supplies and Services,INFORMATION TECHNOLOGY                                                                              ,AMAZON.CO.UK LTD,BA0000274739,29.39,727255821
BIS,The Insolvency Service,01/04/2014,Office Supplies and Services,INFORMATION TECHNOLOGY                                                                              ,AMAZON.CO.UK LTD,BA0000274739,397.4,727255821
BIS,The Insolvency Service,01/04/2014,Office Supplies and Services,ESTATES,AMAZON.CO.UK LTD,BA0000274739,30.96,727255821
BIS,The Insolvency Service,01/04/2014,Office Supplies and Services,"PLANNING, PERFORMANCE & PROJECTS                                                                    ",AMAZON.CO.UK LTD,BA0000274739,72.99,727255821
BIS,The Insolvency Service,01/04/2014,Office Supplies and Services,CUSTOMER AND COMMUNICATIONS                                                                         ,AMAZON.CO.UK LTD,BA0000274739,106.93,727255821
BIS,The Insolvency Service,01/04/2014,Office Supplies and Services,BUSINESS SERVICES DIRECTORATE                                                                       ,AMAZON.CO.UK LTD,BA0000274739,17.96,727255821
BIS,The Insolvency Service,01/04/2014,Office Supplies and Services,BUSINESS SERVICES DIRECTORATE                                                                       ,AMAZON.CO.UK LTD,BA0000274739,35.96,727255821
BIS,The Insolvency Service,01/04/2014,Office Supplies and Services,"PLANNING, PERFORMANCE & PROJECTS                                                                    ",AMAZON.CO.UK LTD,BA0000274739,15.69,727255821
BIS,The Insolvency Service,01/04/2014,Accommodation,"PLANNING, PERFORMANCE & PROJECTS                                                                    ",AMMERHURST LTD (KEYSPLEASE),BA0000274739,242.95,231097780
BIS,The Insolvency Service,01/04/2014,Office Supplies and Services,FACILITIES                                                                                          ,AMMERHURST LTD (KEYSPLEASE),BA0000274739,39.58,231097780
BIS,The Insolvency Service,29/04/2014,Insolvency Case Related Costs,OFFICIAL RECEIVER SERVICES                                                                          ,ANGLO EUROPEAN PRIVATE DETECTIVES,BA0000274790,"1,890.00",451474257
BIS,The Insolvency Service,29/04/2014,Investigation and Enforcement Costs,INVESTIGATION & ENFORCEMENT SERVICES                                                                ,ANGLO EUROPEAN PRIVATE DETECTIVES,BA0000274790,"2,540.00",451474257
BIS,The Insolvency Service,29/04/2014,Investigation and Enforcement Costs,OFFICIAL RECEIVER SERVICES                                                                          ,ANGLO EUROPEAN PRIVATE DETECTIVES,BA0000274790,762,451474257
BIS,The Insolvency Service,01/04/2014,Travel and Subsistence,INVESTIGATION & ENFORCEMENT SERVICES                                                                ,APCOA CONNECT - FGW                                         ,BA0000274739,9,
BIS,The Insolvency Service,01/04/2014,Travel and Subsistence,INVESTIGATION & ENFORCEMENT SERVICES                                                                ,APCOA CONNECT - FGW                                         ,BA0000274739,14.7,
BIS,The Insolvency Service,01/04/2014,Office Supplies and Services,CUSTOMER AND COMMUNICATIONS                                                                         ,APPLE ONLINE,BA0000274739,419,
BIS,The Insolvency Service,01/04/2014,Employee Related Costs,PEOPLE & CAPABILITY                                                                                 ,ARGOS RETAIL GROUP,BA0000274739,39.99,145899025
BIS,The Insolvency Service,01/04/2014,Office Supplies and Services,ESTATES,ARGOS RETAIL GROUP,BA0000274739,59.99,145899025
BIS,The Insolvency Service,25/04/2014,Employee Related Costs,FINANCE AND COMMERCIAL                                                                              ,ASSOCIATION OF CHIEF EXECUTIVES,BA0000274731,595,875480390
BIS,The Insolvency Service,04/04/2014,Computer and IT Systems,INFORMATION TECHNOLOGY                                                                              ,ATOS IT SERVICES UK LTD,BA0000274127,"203,465.00",
BIS,The Insolvency Service,07/04/2014,Computer and IT Systems,"PLANNING, PERFORMANCE & PROJECTS                                                                    ",ATOS IT SERVICES UK LTD,BA0000274172,"2,136.00",
BIS,The Insolvency Service,07/04/2014,Computer and IT Systems,"PLANNING, PERFORMANCE & PROJECTS                                                                    ",ATOS IT SERVICES UK LTD,BA0000274173,"6,390.00",
BIS,The Insolvency Service,07/04/2014,Computer and IT Systems,"PLANNING, PERFORMANCE & PROJECTS                                                                    ",ATOS IT SERVICES UK LTD,BA0000274174,962,
BIS,The Insolvency Service,07/04/2014,Computer and IT Systems,"PLANNING, PERFORMANCE & PROJECTS                                                                    ",ATOS IT SERVICES UK LTD,BA0000274170,801,
BIS,The Insolvency Service,07/04/2014,Computer and IT Systems,"PLANNING, PERFORMANCE & PROJECTS                                                                    ",ATOS IT SERVICES UK LTD,BA0000274176,"4,913.30",
BIS,The Insolvency Service,01/04/2014,Agency Workers,"PLANNING, PERFORMANCE & PROJECTS                                                                    ",BADENOCH & CLARK,BA0000273928,"3,300.00",232347975
BIS,The Insolvency Service,04/04/2014,Agency Workers,INFORMATION TECHNOLOGY                                                                              ,BADENOCH & CLARK,BA0000274106,"3,675.19",232347975
BIS,The Insolvency Service,04/04/2014,Agency Workers,INFORMATION TECHNOLOGY                                                                              ,BADENOCH & CLARK,BA0000274106,"4,677.20",232347975
BIS,The Insolvency Service,04/04/2014,Agency Workers,INVESTIGATION & ENFORCEMENT SERVICES                                                                ,BADENOCH & CLARK,BA0000274106,797.75,232347975
BIS,The Insolvency Service,04/04/2014,Agency Workers,INVESTIGATION & ENFORCEMENT SERVICES                                                                ,BADENOCH & CLARK,BA0000274106,"3,201.47",232347975
BIS,The Insolvency Service,04/04/2014,Agency Workers,INVESTIGATION & ENFORCEMENT SERVICES                                                                ,BADENOCH & CLARK,BA0000274106,"4,981.20",232347975
BIS,The Insolvency Service,04/04/2014,Agency Workers,INVESTIGATION & ENFORCEMENT SERVICES                                                                ,BADENOCH & CLARK,BA0000274106,"5,822.66",232347975
BIS,The Insolvency Service,04/04/2014,Agency Workers,INVESTIGATION & ENFORCEMENT SERVICES                                                                ,BADENOCH & CLARK,BA0000274106,"5,986.83",232347975
BIS,The Insolvency Service,04/04/2014,Agency Workers,INVESTIGATION & ENFORCEMENT SERVICES                                                                ,BADENOCH & CLARK,BA0000274106,"7,202.91",232347975
BIS,The Insolvency Service,04/04/2014,Agency Workers,INVESTIGATION & ENFORCEMENT SERVICES                                                                ,BADENOCH & CLARK,BA0000274106,"13,213.65",232347975
BIS,The Insolvency Service,04/04/2014,Agency Workers,INVESTIGATION & ENFORCEMENT SERVICES                                                                ,BADENOCH & CLARK,BA0000274106,"20,791.05",232347975
BIS,The Insolvency Service,14/04/2014,Agency Workers,BUSINESS SERVICES DIRECTORATE                                                                       ,BADENOCH & CLARK,BA0000274508,"3,300.00",232347975
BIS,The Insolvency Service,14/04/2014,Agency Workers,BUSINESS SERVICES DIRECTORATE                                                                       ,BADENOCH & CLARK,BA0000274509,"3,300.00",232347975
BIS,The Insolvency Service,23/04/2014,Agency Workers,"PLANNING, PERFORMANCE & PROJECTS                                                                    ",BADENOCH & CLARK,BA0000274651,930,232347975
BIS,The Insolvency Service,29/04/2014,Agency Workers,"PLANNING, PERFORMANCE & PROJECTS                                                                    ",BADENOCH & CLARK,BA0000274750,"3,300.00",232347975
BIS,The Insolvency Service,29/04/2014,Agency Workers,"PLANNING, PERFORMANCE & PROJECTS                                                                    ",BADENOCH & CLARK,BA0000274802,930,232347975
BIS,The Insolvency Service,23/04/2014,Computer and IT Systems,INFORMATION TECHNOLOGY                                                                              ,BADENOCH & CLARK,BA0000274665,323.46,232347975
BIS,The Insolvency Service,23/04/2014,Computer and IT Systems,INFORMATION TECHNOLOGY                                                                              ,BADENOCH & CLARK,BA0000274635,"1,132.12",232347975
BIS,The Insolvency Service,03/04/2014,Investigation and Enforcement Costs,INVESTIGATION & ENFORCEMENT SERVICES                                                                ,BAKER TILLY,BA0000274054,"2,518.00",890965570
BIS,The Insolvency Service,03/04/2014,Investigation and Enforcement Costs,INVESTIGATION & ENFORCEMENT SERVICES                                                                ,BAKER TILLY,BA0000274038,176,890965570
BIS,The Insolvency Service,03/04/2014,Investigation and Enforcement Costs,INVESTIGATION & ENFORCEMENT SERVICES                                                                ,BAKER TILLY,BA0000274039,360,890965570
BIS,The Insolvency Service,09/04/2014,Investigation and Enforcement Costs,INVESTIGATION & ENFORCEMENT SERVICES                                                                ,BAKER TILLY,BA0000274353,"1,771.00",890965570
BIS,The Insolvency Service,01/04/2014,Accommodation,ESTATES,BANNER BUSINESS SERVICES Ltd.,BA0000273929,12.6,731860439
BIS,The Insolvency Service,01/04/2014,Accommodation,ESTATES,BANNER BUSINESS SERVICES Ltd.,BA0000273929,12.6,731860439
BIS,The Insolvency Service,01/04/2014,Accommodation,ESTATES,BANNER BUSINESS SERVICES Ltd.,BA0000273929,15.3,731860439
BIS,The Insolvency Service,01/04/2014,Accommodation,ESTATES,BANNER BUSINESS SERVICES Ltd.,BA0000273929,15.84,731860439
BIS,The Insolvency Service,01/04/2014,Accommodation,ESTATES,BANNER BUSINESS SERVICES Ltd.,BA0000273929,19.62,731860439
BIS,The Insolvency Service,01/04/2014,Accommodation,ESTATES,BANNER BUSINESS SERVICES Ltd.,BA0000273929,27.54,731860439
BIS,The Insolvency Service,01/04/2014,Accommodation,ESTATES,BANNER BUSINESS SERVICES Ltd.,BA0000273929,28.75,731860439
BIS,The Insolvency Service,01/04/2014,Accommodation,ESTATES,BANNER BUSINESS SERVICES Ltd.,BA0000273929,32.88,731860439
BIS,The Insolvency Service,01/04/2014,Accommodation,ESTATES,BANNER BUSINESS SERVICES Ltd.,BA0000273929,60.76,731860439
BIS,The Insolvency Service,01/04/2014,Accommodation,ESTATES,BANNER BUSINESS SERVICES Ltd.,BA0000273929,66.21,731860439
BIS,The Insolvency Service,01/04/2014,Accommodation,ESTATES,BANNER BUSINESS SERVICES Ltd.,BA0000273929,67.22,731860439
BIS,The Insolvency Service,01/04/2014,Accommodation,ESTATES,BANNER BUSINESS SERVICES Ltd.,BA0000273929,78.15,731860439
BIS,The Insolvency Service,01/04/2014,Accommodation,ESTATES,BANNER BUSINESS SERVICES Ltd.,BA0000273929,86.12,731860439
BIS,The Insolvency Service,01/04/2014,Accommodation,ESTATES,BANNER BUSINESS SERVICES Ltd.,BA0000273929,86.42,731860439
BIS,The Insolvency Service,01/04/2014,Accommodation,ESTATES,BANNER BUSINESS SERVICES Ltd.,BA0000273929,90.25,731860439
BIS,The Insolvency Service,01/04/2014,Accommodation,ESTATES,BANNER BUSINESS SERVICES Ltd.,BA0000273929,93.08,731860439
BIS,The Insolvency Service,01/04/2014,Accommodation,ESTATES,BANNER BUSINESS SERVICES Ltd.,BA0000273929,112.66,731860439
BIS,The Insolvency Service,01/04/2014,Accommodation,ESTATES,BANNER BUSINESS SERVICES Ltd.,BA0000273929,114.5,731860439
BIS,The Insolvency Service,01/04/2014,Accommodation,ESTATES,BANNER BUSINESS SERVICES Ltd.,BA0000273929,118.67,731860439
BIS,The Insolvency Service,01/04/2014,Accommodation,ESTATES,BANNER BUSINESS SERVICES Ltd.,BA0000273929,127.72,731860439
BIS,The Insolvency Service,01/04/2014,Accommodation,ESTATES,BANNER BUSINESS SERVICES Ltd.,BA0000273929,133.86,731860439
BIS,The Insolvency Service,01/04/2014,Accommodation,ESTATES,BANNER BUSINESS SERVICES Ltd.,BA0000273929,137.11,731860439
BIS,The Insolvency Service,01/04/2014,Accommodation,ESTATES,BANNER BUSINESS SERVICES Ltd.,BA0000273929,162.9,731860439
BIS,The Insolvency Service,01/04/2014,Accommodation,ESTATES,BANNER BUSINESS SERVICES Ltd.,BA0000273929,201.07,731860439
BIS,The Insolvency Service,01/04/2014,Accommodation,ESTATES,BANNER BUSINESS SERVICES Ltd.,BA0000273929,208.94,731860439
BIS,The Insolvency Service,01/04/2014,Accommodation,ESTATES,BANNER BUSINESS SERVICES Ltd.,BA0000273929,226.8,731860439
BIS,The Insolvency Service,01/04/2014,Accommodation,ESTATES,BANNER BUSINESS SERVICES Ltd.,BA0000273929,"1,471.32",731860439
BIS,The Insolvency Service,02/04/2014,Office Supplies and Services,BUSINESS SERVICES DIRECTORATE                                                                       ,BANNER BUSINESS SERVICES Ltd.,BA0000273964,4.72,731860439
BIS,The Insolvency Service,02/04/2014,Office Supplies and Services,FINANCE AND COMMERCIAL                                                                              ,BANNER BUSINESS SERVICES Ltd.,BA0000273964,"1,314.00",731860439
BIS,The Insolvency Service,02/04/2014,Office Supplies and Services,FINANCE AND COMMERCIAL                                                                              ,BANNER BUSINESS SERVICES Ltd.,BA0000273964,"1,763.98",731860439
BIS,The Insolvency Service,02/04/2014,Office Supplies and Services,INVESTIGATION & ENFORCEMENT SERVICES                                                                ,BANNER BUSINESS SERVICES Ltd.,BA0000273964,252.79,731860439
BIS,The Insolvency Service,02/04/2014,Office Supplies and Services,OFFICIAL RECEIVER SERVICES                                                                          ,BANNER BUSINESS SERVICES Ltd.,BA0000273964,6.76,731860439
BIS,The Insolvency Service,02/04/2014,Office Supplies and Services,OFFICIAL RECEIVER SERVICES                                                                          ,BANNER BUSINESS SERVICES Ltd.,BA0000273964,39.79,731860439
BIS,The Insolvency Service,02/04/2014,Office Supplies and Services,OFFICIAL RECEIVER SERVICES                                                                          ,BANNER BUSINESS SERVICES Ltd.,BA0000273964,46.02,731860439
BIS,The Insolvency Service,02/04/2014,Office Supplies and Services,OFFICIAL RECEIVER SERVICES                                                                          ,BANNER BUSINESS SERVICES Ltd.,BA0000273964,94.34,731860439
BIS,The Insolvency Service,02/04/2014,Office Supplies and Services,OFFICIAL RECEIVER SERVICES                                                                          ,BANNER BUSINESS SERVICES Ltd.,BA0000273964,108.78,731860439
BIS,The Insolvency Service,02/04/2014,Office Supplies and Services,OFFICIAL RECEIVER SERVICES                                                                          ,BANNER BUSINESS SERVICES Ltd.,BA0000273964,112.73,731860439
BIS,The Insolvency Service,02/04/2014,Office Supplies and Services,OFFICIAL RECEIVER SERVICES                                                                          ,BANNER BUSINESS SERVICES Ltd.,BA0000273964,124.08,731860439
BIS,The Insolvency Service,02/04/2014,Office Supplies and Services,OFFICIAL RECEIVER SERVICES                                                                          ,BANNER BUSINESS SERVICES Ltd.,BA0000273964,150.64,731860439
BIS,The Insolvency Service,02/04/2014,Office Supplies and Services,OFFICIAL RECEIVER SERVICES                                                                          ,BANNER BUSINESS SERVICES Ltd.,BA0000273964,154.09,731860439
BIS,The Insolvency Service,02/04/2014,Office Supplies and Services,OFFICIAL RECEIVER SERVICES                                                                          ,BANNER BUSINESS SERVICES Ltd.,BA0000273964,192.47,731860439
BIS,The Insolvency Service,02/04/2014,Office Supplies and Services,OFFICIAL RECEIVER SERVICES                                                                          ,BANNER BUSINESS SERVICES Ltd.,BA0000273964,232.84,731860439
BIS,The Insolvency Service,02/04/2014,Office Supplies and Services,OFFICIAL RECEIVER SERVICES                                                                          ,BANNER BUSINESS SERVICES Ltd.,BA0000273964,265.25,731860439
BIS,The Insolvency Service,02/04/2014,Office Supplies and Services,OFFICIAL RECEIVER SERVICES                                                                          ,BANNER BUSINESS SERVICES Ltd.,BA0000273964,298.87,731860439
BIS,The Insolvency Service,02/04/2014,Office Supplies and Services,OFFICIAL RECEIVER SERVICES                                                                          ,BANNER BUSINESS SERVICES Ltd.,BA0000273964,301.03,731860439
BIS,The Insolvency Service,02/04/2014,Office Supplies and Services,OFFICIAL RECEIVER SERVICES                                                                          ,BANNER BUSINESS SERVICES Ltd.,BA0000273964,343.09,731860439
BIS,The Insolvency Service,02/04/2014,Office Supplies and Services,OFFICIAL RECEIVER SERVICES                                                                          ,BANNER BUSINESS SERVICES Ltd.,BA0000273964,348.53,731860439
BIS,The Insolvency Service,02/04/2014,Office Supplies and Services,OFFICIAL RECEIVER SERVICES                                                                          ,BANNER BUSINESS SERVICES Ltd.,BA0000273964,350.51,731860439
BIS,The Insolvency Service,02/04/2014,Office Supplies and Services,OFFICIAL RECEIVER SERVICES                                                                          ,BANNER BUSINESS SERVICES Ltd.,BA0000273964,381.59,731860439
BIS,The Insolvency Service,02/04/2014,Office Supplies and Services,OFFICIAL RECEIVER SERVICES                                                                          ,BANNER BUSINESS SERVICES Ltd.,BA0000273964,396.19,731860439
BIS,The Insolvency Service,02/04/2014,Office Supplies and Services,OFFICIAL RECEIVER SERVICES                                                                          ,BANNER BUSINESS SERVICES Ltd.,BA0000273964,421.51,731860439
BIS,The Insolvency Service,02/04/2014,Office Supplies and Services,OFFICIAL RECEIVER SERVICES                                                                          ,BANNER BUSINESS SERVICES Ltd.,BA0000273964,471.1,731860439
BIS,The Insolvency Service,02/04/2014,Office Supplies and Services,OFFICIAL RECEIVER SERVICES                                                                          ,BANNER BUSINESS SERVICES Ltd.,BA0000273964,641.63,731860439
BIS,The Insolvency Service,02/04/2014,Office Supplies and Services,OFFICIAL RECEIVER SERVICES                                                                          ,BANNER BUSINESS SERVICES Ltd.,BA0000273964,689.3,731860439
BIS,The Insolvency Service,02/04/2014,Office Supplies and Services,OFFICIAL RECEIVER SERVICES                                                                          ,BANNER BUSINESS SERVICES Ltd.,BA0000273964,767.1,731860439
BIS,The Insolvency Service,02/04/2014,Office Supplies and Services,OFFICIAL RECEIVER SERVICES                                                                          ,BANNER BUSINESS SERVICES Ltd.,BA0000273964,797.17,731860439
BIS,The Insolvency Service,01/04/2014,Telecoms,FINANCE AND COMMERCIAL                                                                              ,BE UN LIMITED,BA0000274739,22.44,
BIS,The Insolvency Service,01/04/2014,Telecoms,FINANCE AND COMMERCIAL                                                                              ,BE UN LIMITED,BA0000274739,22.44,
BIS,The Insolvency Service,07/04/2014,Accommodation,ESTATES,BETTER PROPERTIES LIMITED,BA0000274184,"80,000.00",549102355
BIS,The Insolvency Service,01/04/2014,Accommodation,ESTATES,BIRMINGHAM CITY COUNCIL,BA0000273931,602.5,
BIS,The Insolvency Service,01/04/2014,Accommodation,ESTATES,BIRMINGHAM CITY COUNCIL,BA0000273932,-602.5,
BIS,The Insolvency Service,01/04/2014,Accommodation,ESTATES,BIRMINGHAM CITY COUNCIL,BA0000273933,602.5,
BIS,The Insolvency Service,01/04/2014,Accommodation,ESTATES,BIRMINGHAM CITY COUNCIL,BA0000273934,-602.5,
BIS,The Insolvency Service,01/04/2014,Accommodation,ESTATES,BIRMINGHAM CITY COUNCIL,BA0000273935,588.75,
BIS,The Insolvency Service,01/04/2014,Accommodation,ESTATES,BIRMINGHAM CITY COUNCIL,BA0000273936,602.5,
BIS,The Insolvency Service,01/04/2014,Accommodation,ESTATES,BIRMINGHAM CITY COUNCIL,BA0000273937,-602.5,
BIS,The Insolvency Service,01/04/2014,Accommodation,ESTATES,BIRMINGHAM CITY COUNCIL,BA0000273938,602.5,
BIS,The Insolvency Service,01/04/2014,Accommodation,ESTATES,BIRMINGHAM CITY COUNCIL,BA0000273939,-602.5,
BIS,The Insolvency Service,03/04/2014,Accommodation,ESTATES,BIRMINGHAM CITY COUNCIL,BA0000274043,588.75,
BIS,The Insolvency Service,01/04/2014,Office Supplies and Services,INFORMATION TECHNOLOGY                                                                              ,BMI SOLUTIONS UK,BA0000274739,"1,018.19",753100668
BIS,The Insolvency Service,07/04/2014,Computer and IT Systems,INFORMATION TECHNOLOGY                                                                              ,BOTTOMLINE TECHNOLOGIES,BA0000274207,"1,500.00",724548231
BIS,The Insolvency Service,09/04/2014,Training Costs,PEOPLE & CAPABILITY                                                                                 ,BPP PROFESSIONAL EDUCATION,BA0000274221,"3,140.00",466451629
BIS,The Insolvency Service,09/04/2014,Training Costs,PEOPLE & CAPABILITY                                                                                 ,BPP PROFESSIONAL EDUCATION,BA0000274222,"2,790.00",466451629
BIS,The Insolvency Service,01/04/2014,Insolvency Case Related Costs,OFFICIAL RECEIVER SERVICES                                                                          ,BRIGHTON COUNTY COURT,BA0000274739,220,
BIS,The Insolvency Service,01/04/2014,Accommodation,ESTATES,BRISTOL CITY COUNCIL (BUSINESS RATES),BA0000273919,"54,948.00",
BIS,The Insolvency Service,04/04/2014,Accommodation,ESTATES,BRITISH GAS BUSINESS,BA0000274109,106.87,684966762
BIS,The Insolvency Service,04/04/2014,Accommodation,ESTATES,BRITISH GAS BUSINESS,BA0000274110,311.15,684966762
BIS,The Insolvency Service,15/04/2014,Accommodation,ESTATES,BRITISH GAS BUSINESS,BA0000274557,58.83,684966762
BIS,The Insolvency Service,15/04/2014,Accommodation,ESTATES,BRITISH GAS BUSINESS,BA0000274558,66.61,684966762
BIS,The Insolvency Service,15/04/2014,Accommodation,ESTATES,BRITISH GAS BUSINESS,BA0000274559,121.96,684966762
BIS,The Insolvency Service,15/04/2014,Accommodation,ESTATES,BRITISH GAS BUSINESS,BA0000274560,118.08,684966762
BIS,The Insolvency Service,15/04/2014,Accommodation,ESTATES,BRITISH GAS BUSINESS,BA0000274561,173.06,684966762
BIS,The Insolvency Service,15/04/2014,Accommodation,ESTATES,BRITISH GAS BUSINESS,BA0000274562,362.27,684966762
BIS,The Insolvency Service,15/04/2014,Accommodation,ESTATES,BRITISH GAS BUSINESS,BA0000274563,529.25,684966762
BIS,The Insolvency Service,15/04/2014,Accommodation,ESTATES,BRITISH GAS BUSINESS,BA0000274564,265.07,684966762
BIS,The Insolvency Service,15/04/2014,Accommodation,ESTATES,BRITISH GAS BUSINESS,BA0000274565,300.91,684966762
BIS,The Insolvency Service,15/04/2014,Accommodation,ESTATES,BRITISH GAS BUSINESS,BA0000274566,444.59,684966762
BIS,The Insolvency Service,15/04/2014,Accommodation,ESTATES,BRITISH GAS BUSINESS,BA0000274567,94.42,684966762
BIS,The Insolvency Service,23/04/2014,Accommodation,ESTATES,BRITISH GAS BUSINESS,BA0000274656,211.3,684966762
BIS,The Insolvency Service,23/04/2014,Accommodation,ESTATES,BRITISH GAS BUSINESS,BA0000274657,86.31,684966762
BIS,The Insolvency Service,01/04/2014,Agency Workers,"PLANNING, PERFORMANCE & PROJECTS                                                                    ",BROOK STREET (UK) LTD,BA0000273941,713.7,
BIS,The Insolvency Service,25/04/2014,Agency Workers,"PLANNING, PERFORMANCE & PROJECTS                                                                    ",BROOK STREET (UK) LTD,BA0000274724,713.7,
BIS,The Insolvency Service,25/04/2014,Agency Workers,"PLANNING, PERFORMANCE & PROJECTS                                                                    ",BROOK STREET (UK) LTD,BA0000274725,713.7,
BIS,The Insolvency Service,30/04/2014,Agency Workers,"PLANNING, PERFORMANCE & PROJECTS                                                                    ",BROOK STREET (UK) LTD,BA0000274853,570.96,
BIS,The Insolvency Service,09/04/2014,Accommodation,ESTATES,BRUTON KNOWLES,BA0000274351,0.03,553685320
BIS,The Insolvency Service,09/04/2014,Accommodation,ESTATES,BRUTON KNOWLES,BA0000274351,988.6,553685320
BIS,The Insolvency Service,09/04/2014,Accommodation,ESTATES,BRUTON KNOWLES,BA0000274352,"1,976.66",553685320
BIS,The Insolvency Service,11/04/2014,Telecoms,BUSINESS SERVICES DIRECTORATE                                                                       ,BT CONFERENCING SERVICES,BA0000274461,3.16,245719348
BIS,The Insolvency Service,11/04/2014,Telecoms,FACILITIES                                                                                          ,BT CONFERENCING SERVICES,BA0000274461,1.07,245719348
BIS,The Insolvency Service,11/04/2014,Telecoms,FACILITIES                                                                                          ,BT CONFERENCING SERVICES,BA0000274461,35.39,245719348
BIS,The Insolvency Service,11/04/2014,Telecoms,FACILITIES                                                                                          ,BT CONFERENCING SERVICES,BA0000274461,102.38,245719348
BIS,The Insolvency Service,11/04/2014,Telecoms,INFORMATION TECHNOLOGY                                                                              ,BT CONFERENCING SERVICES,BA0000274461,9.43,245719348
BIS,The Insolvency Service,11/04/2014,Telecoms,INFORMATION TECHNOLOGY                                                                              ,BT CONFERENCING SERVICES,BA0000274461,25.54,245719348
BIS,The Insolvency Service,11/04/2014,Telecoms,INFORMATION TECHNOLOGY                                                                              ,BT CONFERENCING SERVICES,BA0000274461,274.25,245719348
BIS,The Insolvency Service,11/04/2014,Telecoms,OFFICIAL RECEIVER SERVICES                                                                          ,BT CONFERENCING SERVICES,BA0000274461,1.92,245719348
BIS,The Insolvency Service,11/04/2014,Telecoms,OFFICIAL RECEIVER SERVICES                                                                          ,BT CONFERENCING SERVICES,BA0000274461,3.08,245719348
BIS,The Insolvency Service,11/04/2014,Telecoms,OFFICIAL RECEIVER SERVICES                                                                          ,BT CONFERENCING SERVICES,BA0000274461,4.3,245719348
BIS,The Insolvency Service,11/04/2014,Telecoms,OFFICIAL RECEIVER SERVICES                                                                          ,BT CONFERENCING SERVICES,BA0000274461,4.3,245719348
BIS,The Insolvency Service,11/04/2014,Telecoms,OFFICIAL RECEIVER SERVICES                                                                          ,BT CONFERENCING SERVICES,BA0000274461,6.62,245719348
BIS,The Insolvency Service,11/04/2014,Telecoms,OFFICIAL RECEIVER SERVICES                                                                          ,BT CONFERENCING SERVICES,BA0000274461,11.89,245719348
BIS,The Insolvency Service,11/04/2014,Telecoms,OFFICIAL RECEIVER SERVICES                                                                          ,BT CONFERENCING SERVICES,BA0000274461,13.21,245719348
BIS,The Insolvency Service,11/04/2014,Telecoms,OFFICIAL RECEIVER SERVICES                                                                          ,BT CONFERENCING SERVICES,BA0000274461,14.28,245719348
BIS,The Insolvency Service,11/04/2014,Telecoms,OFFICIAL RECEIVER SERVICES                                                                          ,BT CONFERENCING SERVICES,BA0000274461,20.82,245719348
BIS,The Insolvency Service,11/04/2014,Telecoms,OFFICIAL RECEIVER SERVICES                                                                          ,BT CONFERENCING SERVICES,BA0000274461,27.06,245719348
BIS,The Insolvency Service,11/04/2014,Telecoms,OFFICIAL RECEIVER SERVICES                                                                          ,BT CONFERENCING SERVICES,BA0000274461,34.81,245719348
BIS,The Insolvency Service,29/04/2014,Computer and IT Systems,INFORMATION TECHNOLOGY                                                                              ,BT TELEPHONE PAYMENT CENTRE,BA0000274798,"2,013.30",245719348
BIS,The Insolvency Service,01/04/2014,Telecoms,INFORMATION TECHNOLOGY                                                                              ,BT TELEPHONE PAYMENT CENTRE,BA0000274739,91.3,245719348
BIS,The Insolvency Service,01/04/2014,Telecoms,INFORMATION TECHNOLOGY                                                                              ,BT TELEPHONE PAYMENT CENTRE,BA0000274739,22.62,245719348
BIS,The Insolvency Service,01/04/2014,Telecoms,FINANCE AND COMMERCIAL                                                                              ,BT TELEPHONE PAYMENT CENTRE,BA0000274739,106.28,245719348
BIS,The Insolvency Service,01/04/2014,Telecoms,INFORMATION TECHNOLOGY                                                                              ,BT TELEPHONE PAYMENT CENTRE,BA0000274739,82.54,245719348
BIS,The Insolvency Service,01/04/2014,Telecoms,INFORMATION TECHNOLOGY                                                                              ,BT TELEPHONE PAYMENT CENTRE,BA0000274739,90.64,245719348
BIS,The Insolvency Service,01/04/2014,Telecoms,INFORMATION TECHNOLOGY                                                                              ,BT TELEPHONE PAYMENT CENTRE,BA0000274739,98.83,245719348
BIS,The Insolvency Service,01/04/2014,Telecoms,INFORMATION TECHNOLOGY                                                                              ,BT TELEPHONE PAYMENT CENTRE,BA0000274739,82.54,245719348
BIS,The Insolvency Service,01/04/2014,Telecoms,INFORMATION TECHNOLOGY                                                                              ,BT TELEPHONE PAYMENT CENTRE,BA0000274739,98.27,245719348
BIS,The Insolvency Service,01/04/2014,Telecoms,INFORMATION TECHNOLOGY                                                                              ,BT TELEPHONE PAYMENT CENTRE,BA0000274739,78.21,245719348
BIS,The Insolvency Service,01/04/2014,Telecoms,INFORMATION TECHNOLOGY                                                                              ,BT TELEPHONE PAYMENT CENTRE,BA0000274739,139.23,245719348
BIS,The Insolvency Service,01/04/2014,Telecoms,FINANCE AND COMMERCIAL                                                                              ,BT TELEPHONE PAYMENT CENTRE,BA0000274739,66.18,245719348
BIS,The Insolvency Service,01/04/2014,Telecoms,FINANCE AND COMMERCIAL                                                                              ,BT TELEPHONE PAYMENT CENTRE,BA0000274739,88.57,245719348
BIS,The Insolvency Service,01/04/2014,Telecoms,FINANCE AND COMMERCIAL                                                                              ,BT TELEPHONE PAYMENT CENTRE,BA0000274739,185.86,245719348
BIS,The Insolvency Service,09/04/2014,Telecoms,ESTATES,BT TELEPHONE PAYMENT CENTRE,BA0000274331,113.76,245719348
BIS,The Insolvency Service,09/04/2014,Telecoms,OFFICIAL RECEIVER SERVICES                                                                          ,BT TELEPHONE PAYMENT CENTRE,BA0000274364,113.76,245719348
BIS,The Insolvency Service,09/04/2014,Telecoms,OFFICIAL RECEIVER SERVICES                                                                          ,BT TELEPHONE PAYMENT CENTRE,BA0000274332,114.01,245719348
BIS,The Insolvency Service,11/04/2014,Telecoms,OFFICIAL RECEIVER SERVICES                                                                          ,BT TELEPHONE PAYMENT CENTRE,BA0000274413,69.76,245719348
BIS,The Insolvency Service,11/04/2014,Telecoms,OFFICIAL RECEIVER SERVICES                                                                          ,BT TELEPHONE PAYMENT CENTRE,BA0000274414,56.26,245719348
BIS,The Insolvency Service,01/04/2014,Office Supplies and Services,OFFICIAL RECEIVER SERVICES                                                                          ,CABLETIES-ONLINE,BA0000274739,49.32,
BIS,The Insolvency Service,15/04/2014,Training Costs,PEOPLE & CAPABILITY                                                                                 ,CAPITA BUSINESS SERVICES LTD,BA0000274536,"3,353.00",618184140
BIS,The Insolvency Service,15/04/2014,Training Costs,PEOPLE & CAPABILITY                                                                                 ,CAPITA BUSINESS SERVICES LTD,BA0000274547,140,618184140
BIS,The Insolvency Service,15/04/2014,Training Costs,"PLANNING, PERFORMANCE & PROJECTS                                                                    ",CAPITA BUSINESS SERVICES LTD,BA0000274518,"3,292.00",618184140
BIS,The Insolvency Service,16/04/2014,Training Costs,PEOPLE & CAPABILITY                                                                                 ,CAPITA BUSINESS SERVICES LTD,BA0000274594,45.6,618184140
BIS,The Insolvency Service,25/04/2014,Training Costs,PEOPLE & CAPABILITY                                                                                 ,CAPITA BUSINESS SERVICES LTD,BA0000274674,125,618184140
BIS,The Insolvency Service,25/04/2014,Training Costs,"PLANNING, PERFORMANCE & PROJECTS                                                                    ",CAPITA BUSINESS SERVICES LTD,BA0000274671,170,618184140
BIS,The Insolvency Service,25/04/2014,Training Costs,"PLANNING, PERFORMANCE & PROJECTS                                                                    ",CAPITA BUSINESS SERVICES LTD,BA0000274672,170,618184140
BIS,The Insolvency Service,25/04/2014,Training Costs,"PLANNING, PERFORMANCE & PROJECTS                                                                    ",CAPITA BUSINESS SERVICES LTD,BA0000274673,170,618184140
BIS,The Insolvency Service,25/04/2014,Training Costs,"PLANNING, PERFORMANCE & PROJECTS                                                                    ",CAPITA BUSINESS SERVICES LTD,BA0000274675,170,618184140
BIS,The Insolvency Service,25/04/2014,Training Costs,"PLANNING, PERFORMANCE & PROJECTS                                                                    ",CAPITA BUSINESS SERVICES LTD,BA0000274676,170,618184140
BIS,The Insolvency Service,25/04/2014,Training Costs,"PLANNING, PERFORMANCE & PROJECTS                                                                    ",CAPITA BUSINESS SERVICES LTD,BA0000274677,170,618184140
BIS,The Insolvency Service,25/04/2014,Training Costs,"PLANNING, PERFORMANCE & PROJECTS                                                                    ",CAPITA BUSINESS SERVICES LTD,BA0000274678,170,618184140
BIS,The Insolvency Service,02/04/2014,Agency Workers,"PLANNING, PERFORMANCE & PROJECTS                                                                    ",CAPITA RESOURCING LTD,BA0000273972,"1,865.27",618184140
BIS,The Insolvency Service,09/04/2014,Agency Workers,"PLANNING, PERFORMANCE & PROJECTS                                                                    ",CAPITA RESOURCING LTD,BA0000274345,"2,072.52",618184140
BIS,The Insolvency Service,14/04/2014,Agency Workers,"PLANNING, PERFORMANCE & PROJECTS                                                                    ",CAPITA RESOURCING LTD,BA0000274499,"3,900.00",618184140
BIS,The Insolvency Service,23/04/2014,Agency Workers,"PLANNING, PERFORMANCE & PROJECTS                                                                    ",CAPITA RESOURCING LTD,BA0000274640,"7,800.00",618184140
BIS,The Insolvency Service,25/04/2014,Agency Workers,"PLANNING, PERFORMANCE & PROJECTS                                                                    ",CAPITA RESOURCING LTD,BA0000274694,"2,072.52",618184140
BIS,The Insolvency Service,30/04/2014,Agency Workers,"PLANNING, PERFORMANCE & PROJECTS                                                                    ",CAPITA RESOURCING LTD,BA0000274871,"1,658.02",618184140
BIS,The Insolvency Service,02/04/2014,Computer and IT Systems,INFORMATION TECHNOLOGY                                                                              ,CAPITA RESOURCING LTD,BA0000273973,"2,694.30",618184140
BIS,The Insolvency Service,09/04/2014,Computer and IT Systems,INFORMATION TECHNOLOGY                                                                              ,CAPITA RESOURCING LTD,BA0000274346,"2,694.30",618184140
BIS,The Insolvency Service,30/04/2014,Computer and IT Systems,INFORMATION TECHNOLOGY                                                                              ,CAPITA RESOURCING LTD,BA0000274870,"4,310.88",618184140
BIS,The Insolvency Service,25/04/2014,Employee Related Costs,PEOPLE & CAPABILITY                                                                                 ,CARE FIRST                      ,BA0000274700,"1,551.42",
BIS,The Insolvency Service,02/04/2014,Accommodation,ESTATES,CARILLION SERVICE SOLUTIONS,BA0000273982,"161,977.50",894545868
BIS,The Insolvency Service,02/04/2014,Accommodation,ESTATES,CARILLION SERVICES,BA0000273981,"34,872.50",894545868
BIS,The Insolvency Service,02/04/2014,Accommodation,ESTATES,CARILLION SERVICES,BA0000273981,"5,660.39",894545868
BIS,The Insolvency Service,14/04/2014,Employee Related Costs,OFFICIAL RECEIVER SERVICES                                                                          ,CARTUS FINANCING LIMITED,BA0000274478,"1,239.46",768489458
BIS,The Insolvency Service,11/04/2014,Employee Related Costs,INVESTIGATION & ENFORCEMENT SERVICES                                                                ,CARTUS FUNDING LIMITED,BA0000274462,816.58,768489458
BIS,The Insolvency Service,07/04/2014,Accommodation,ESTATES,CBRE CORPORATE OUTSOURSING LTD,BA0000274175,"27,000.00",
BIS,The Insolvency Service,02/04/2014,Accommodation,ESTATES,CBRE LIMITED,BA0000273962,"7,181.01",
BIS,The Insolvency Service,02/04/2014,Accommodation,ESTATES,CBRE LIMITED,BA0000273963,"6,960.66",
BIS,The Insolvency Service,03/04/2014,Accommodation,ESTATES,CBRE LIMITED,BA0000274052,0.02,
BIS,The Insolvency Service,03/04/2014,Accommodation,ESTATES,CBRE LIMITED,BA0000274052,"1,434.25",
BIS,The Insolvency Service,04/04/2014,Accommodation,ESTATES,CBRE LIMITED,BA0000274108,107.57,
BIS,The Insolvency Service,07/04/2014,Accommodation,ESTATES,CBRE LIMITED,BA0000274180,"1,723.85",
BIS,The Insolvency Service,23/04/2014,Accommodation,ESTATES,CBRE LIMITED,BA0000274642,"4,145.84",
BIS,The Insolvency Service,23/04/2014,Accommodation,ESTATES,CBRE LIMITED,BA0000274643,"3,886.04",
BIS,The Insolvency Service,09/04/2014,Accommodation,ESTATES,CBRE Ltd,BA0000274359,"10,302.50",
BIS,The Insolvency Service,04/04/2014,Accommodation,ESTATES,CBRE PROPERTY AND ASSET MANAGEMENT,BA0000274089,"10,093.25",
BIS,The Insolvency Service,04/04/2014,Accommodation,ESTATES,CBRE PROPERTY AND ASSET MANAGEMENT,BA0000274089,"33,600.00",
BIS,The Insolvency Service,04/04/2014,Accommodation,ESTATES,CBRE PROPERTY AND ASSET MANAGEMENT,BA0000274090,"-9,074.14",
BIS,The Insolvency Service,02/04/2014,Office Supplies and Services,OFFICIAL RECEIVER SERVICES                                                                          ,CENTRE FILLINGS,BA0000273968,66.72,
BIS,The Insolvency Service,03/04/2014,Computer and IT Systems,INFORMATION TECHNOLOGY                                                                              ,CERTES COMPUTING LIMITED,BA0000274056,986.57,
BIS,The Insolvency Service,04/04/2014,Computer and IT Systems,INFORMATION TECHNOLOGY                                                                              ,CERTES COMPUTING LIMITED,BA0000274092,"10,605.61",
BIS,The Insolvency Service,09/04/2014,Computer and IT Systems,INFORMATION TECHNOLOGY                                                                              ,CERTES COMPUTING LIMITED,BA0000274354,"8,632.48",
BIS,The Insolvency Service,25/04/2014,Secretariat Costs,CUSTOMER AND COMMUNICATIONS                                                                         ,CHURCH HOUSE CONFERENCE CENTRE LTD,BA0000274719,360,
BIS,The Insolvency Service,25/04/2014,Secretariat Costs,CUSTOMER AND COMMUNICATIONS                                                                         ,CHURCH HOUSE CONFERENCE CENTRE LTD,BA0000274720,360,
BIS,The Insolvency Service,25/04/2014,Secretariat Costs,CUSTOMER AND COMMUNICATIONS                                                                         ,CHURCH HOUSE CONFERENCE CENTRE LTD,BA0000274721,340.08,
BIS,The Insolvency Service,25/04/2014,Secretariat Costs,CUSTOMER AND COMMUNICATIONS                                                                         ,CHURCH HOUSE CONFERENCE CENTRE LTD,BA0000274722,318,
BIS,The Insolvency Service,25/04/2014,Secretariat Costs,CUSTOMER AND COMMUNICATIONS                                                                         ,CHURCH HOUSE CONFERENCE CENTRE LTD,BA0000274723,318,
BIS,The Insolvency Service,30/04/2014,Travel and Subsistence,BUSINESS SERVICES DIRECTORATE                                                                       ,CITY CABS (EDINBURGH) LTD,BA0000274845,150.78,270679436
BIS,The Insolvency Service,01/04/2014,Postage,OFFICIAL RECEIVER SERVICES                                                                          ,CITY SPRINT UK LTD,BA0000273940,85.71,
BIS,The Insolvency Service,07/04/2014,Postage,INFORMATION TECHNOLOGY                                                                              ,CITY SPRINT UK LTD,BA0000274191,69.92,
BIS,The Insolvency Service,07/04/2014,Postage,INFORMATION TECHNOLOGY                                                                              ,CITY SPRINT UK LTD,BA0000274191,244.48,
BIS,The Insolvency Service,09/04/2014,Postage,OFFICIAL RECEIVER SERVICES                                                                          ,CITY SPRINT UK LTD,BA0000274239,36.28,
BIS,The Insolvency Service,11/04/2014,Postage,OFFICIAL RECEIVER SERVICES                                                                          ,CITY SPRINT UK LTD,BA0000274418,111.23,
BIS,The Insolvency Service,23/04/2014,Postage,OFFICIAL RECEIVER SERVICES                                                                          ,CITY SPRINT UK LTD,BA0000274661,118.2,
BIS,The Insolvency Service,30/04/2014,Postage,OFFICIAL RECEIVER SERVICES                                                                          ,CITY SPRINT UK LTD,BA0000274847,33.74,
BIS,The Insolvency Service,01/04/2014,Training Costs,"PLANNING, PERFORMANCE & PROJECTS",CIVIL SERVICE LEARNING                                      ,BA0000274739,226.8,
BIS,The Insolvency Service,01/04/2014,Accounting and Banking,FINANCE AND COMMERCIAL,CLARANET LTD,BA0000273924,"20,713.88",
BIS,The Insolvency Service,11/04/2014,Investigation and Enforcement Costs,INVESTIGATION & ENFORCEMENT SERVICES                                                                ,CLARKE WILLMOTT SOLICITORS,BA0000274431,45.7,129913060
BIS,The Insolvency Service,11/04/2014,Telecoms,BUSINESS SERVICES DIRECTORATE                                                                       ,CLOUDXL,BA0000274437,420,897386841
BIS,The Insolvency Service,11/04/2014,Telecoms,BUSINESS SERVICES DIRECTORATE                                                                       ,CLOUDXL,BA0000274437,"1,402.96",897386841
BIS,The Insolvency Service,04/04/2014,Insolvency Case Related Costs,OFFICIAL RECEIVER SERVICES                                                                          ,COMPANIES HOUSE,BA0000274113,87,GD255
BIS,The Insolvency Service,04/04/2014,Insolvency Case Related Costs,OFFICIAL RECEIVER SERVICES                                                                          ,COMPANIES HOUSE,BA0000274119,507,GD255
BIS,The Insolvency Service,04/04/2014,Insolvency Case Related Costs,OFFICIAL RECEIVER SERVICES                                                                          ,COMPANIES HOUSE,BA0000274120,40,GD255
BIS,The Insolvency Service,07/04/2014,Insolvency Case Related Costs,INVESTIGATION & ENFORCEMENT SERVICES                                                                ,COMPANIES HOUSE,BA0000274165,865,GD255
BIS,The Insolvency Service,07/04/2014,Insolvency Case Related Costs,INVESTIGATION & ENFORCEMENT SERVICES                                                                ,COMPANIES HOUSE,BA0000274166,916,GD255
BIS,The Insolvency Service,07/04/2014,Insolvency Case Related Costs,INVESTIGATION & ENFORCEMENT SERVICES                                                                ,COMPANIES HOUSE,BA0000274167,332,GD255
BIS,The Insolvency Service,07/04/2014,Insolvency Case Related Costs,INVESTIGATION & ENFORCEMENT SERVICES                                                                ,COMPANIES HOUSE,BA0000274168,27,GD255
BIS,The Insolvency Service,07/04/2014,Insolvency Case Related Costs,OFFICIAL RECEIVER SERVICES                                                                          ,COMPANIES HOUSE,BA0000274215,377,GD255
BIS,The Insolvency Service,09/04/2014,Insolvency Case Related Costs,OFFICIAL RECEIVER SERVICES                                                                          ,COMPANIES HOUSE,BA0000274365,158,GD255
BIS,The Insolvency Service,11/04/2014,Insolvency Case Related Costs,OFFICIAL RECEIVER SERVICES                                                                          ,COMPANIES HOUSE,BA0000274463,43,GD255
BIS,The Insolvency Service,11/04/2014,Insolvency Case Related Costs,OFFICIAL RECEIVER SERVICES                                                                          ,COMPANIES HOUSE,BA0000274419,36,GD255
BIS,The Insolvency Service,11/04/2014,Insolvency Case Related Costs,OFFICIAL RECEIVER SERVICES                                                                          ,COMPANIES HOUSE,BA0000274455,45,GD255
BIS,The Insolvency Service,11/04/2014,Insolvency Case Related Costs,OFFICIAL RECEIVER SERVICES                                                                          ,COMPANIES HOUSE,BA0000274457,51,GD255
BIS,The Insolvency Service,11/04/2014,Insolvency Case Related Costs,OFFICIAL RECEIVER SERVICES                                                                          ,COMPANIES HOUSE,BA0000274459,77,GD255
BIS,The Insolvency Service,11/04/2014,Insolvency Case Related Costs,OFFICIAL RECEIVER SERVICES                                                                          ,COMPANIES HOUSE,BA0000274465,66,GD255
BIS,The Insolvency Service,14/04/2014,Insolvency Case Related Costs,OFFICIAL RECEIVER SERVICES                                                                          ,COMPANIES HOUSE,BA0000274490,92,GD255
BIS,The Insolvency Service,14/04/2014,Insolvency Case Related Costs,OFFICIAL RECEIVER SERVICES                                                                          ,COMPANIES HOUSE,BA0000274494,94,GD255
BIS,The Insolvency Service,14/04/2014,Insolvency Case Related Costs,OFFICIAL RECEIVER SERVICES                                                                          ,COMPANIES HOUSE,BA0000274510,161,GD255
BIS,The Insolvency Service,14/04/2014,Insolvency Case Related Costs,OFFICIAL RECEIVER SERVICES                                                                          ,COMPANIES HOUSE,BA0000274511,70,GD255
BIS,The Insolvency Service,15/04/2014,Insolvency Case Related Costs,OFFICIAL RECEIVER SERVICES                                                                          ,COMPANIES HOUSE,BA0000274551,36,GD255
BIS,The Insolvency Service,15/04/2014,Insolvency Case Related Costs,OFFICIAL RECEIVER SERVICES                                                                          ,COMPANIES HOUSE,BA0000274556,41,GD255
BIS,The Insolvency Service,15/04/2014,Insolvency Case Related Costs,OFFICIAL RECEIVER SERVICES                                                                          ,COMPANIES HOUSE,BA0000274568,19,GD255
BIS,The Insolvency Service,15/04/2014,Insolvency Case Related Costs,OFFICIAL RECEIVER SERVICES                                                                          ,COMPANIES HOUSE,BA0000274569,115,GD255
BIS,The Insolvency Service,16/04/2014,Insolvency Case Related Costs,OFFICIAL RECEIVER SERVICES                                                                          ,COMPANIES HOUSE,BA0000274591,56,GD255
BIS,The Insolvency Service,16/04/2014,Insolvency Case Related Costs,OFFICIAL RECEIVER SERVICES                                                                          ,COMPANIES HOUSE,BA0000274596,23,GD255
BIS,The Insolvency Service,23/04/2014,Insolvency Case Related Costs,OFFICIAL RECEIVER SERVICES                                                                          ,COMPANIES HOUSE,BA0000274663,69,GD255
BIS,The Insolvency Service,23/04/2014,Insolvency Case Related Costs,OFFICIAL RECEIVER SERVICES                                                                          ,COMPANIES HOUSE,BA0000274664,16,GD255
BIS,The Insolvency Service,25/04/2014,Insolvency Case Related Costs,OFFICIAL RECEIVER SERVICES                                                                          ,COMPANIES HOUSE,BA0000274679,100,GD255
BIS,The Insolvency Service,25/04/2014,Insolvency Case Related Costs,OFFICIAL RECEIVER SERVICES                                                                          ,COMPANIES HOUSE,BA0000274682,316,GD255
BIS,The Insolvency Service,25/04/2014,Insolvency Case Related Costs,OFFICIAL RECEIVER SERVICES                                                                          ,COMPANIES HOUSE,BA0000274683,99,GD255
BIS,The Insolvency Service,25/04/2014,Insolvency Case Related Costs,OFFICIAL RECEIVER SERVICES                                                                          ,COMPANIES HOUSE,BA0000274709,99,GD255
BIS,The Insolvency Service,25/04/2014,Insolvency Case Related Costs,OFFICIAL RECEIVER SERVICES                                                                          ,COMPANIES HOUSE,BA0000274728,31,GD255
BIS,The Insolvency Service,25/04/2014,Insolvency Case Related Costs,OFFICIAL RECEIVER SERVICES                                                                          ,COMPANIES HOUSE,BA0000274729,43,GD255
BIS,The Insolvency Service,29/04/2014,Insolvency Case Related Costs,OFFICIAL RECEIVER SERVICES                                                                          ,COMPANIES HOUSE,BA0000274809,49,GD255
BIS,The Insolvency Service,29/04/2014,Insolvency Case Related Costs,OFFICIAL RECEIVER SERVICES                                                                          ,COMPANIES HOUSE,BA0000274823,47,GD255
BIS,The Insolvency Service,15/04/2014,Telecoms,OFFICIAL RECEIVER SERVICES                                                                          ,COMPANIES HOUSE,BA0000274550,566.28,GD255
BIS,The Insolvency Service,30/04/2014,Computer and IT Systems,INFORMATION TECHNOLOGY                                                                              ,COMPUTACENTER (UK) LIMITED,BA0000274875,"13,394.99",490334648
BIS,The Insolvency Service,10/04/2014,Investigation and Enforcement Costs,OFFICIAL RECEIVER SERVICES                                                                          ,CORNHILL SURGERY                                            ,BA0000274363,40,
BIS,The Insolvency Service,14/04/2014,Accommodation,ESTATES,CORONA ENERGY RETAIL 4 LIMITED,BA0000274492,124.23,714232961
BIS,The Insolvency Service,14/04/2014,Accommodation,ESTATES,CORONA ENERGY RETAIL 4 LIMITED,BA0000274493,239.81,714232961
BIS,The Insolvency Service,16/04/2014,Accommodation,ESTATES,CORONA ENERGY RETAIL 4 LIMITED,BA0000274597,421.74,714232961
BIS,The Insolvency Service,16/04/2014,Accommodation,ESTATES,CORONA ENERGY RETAIL 4 LIMITED,BA0000274598,92.68,714232961
BIS,The Insolvency Service,15/04/2014,Accommodation,ESTATES,COUNTRYSIDE PROPERTIES PLC,BA0000274520,"30,000.00",246161964
BIS,The Insolvency Service,01/04/2014,Accommodation,ESTATES,CROYDON COUNCIL,BA0000273922,"81,324.00",218591255
BIS,The Insolvency Service,07/04/2014,Computer and IT Systems,INFORMATION TECHNOLOGY                                                                              ,DATA DUPLICATION LTD,BA0000274214,828,578500228
BIS,The Insolvency Service,07/04/2014,Accommodation,ESTATES,DAVID NEALE SURVEYORS LTD,BA0000274185,"70,000.00",
BIS,The Insolvency Service,08/04/2014,Accommodation,ESTATES,DERING PROPERTIES LTD,BA0000274250,95.89,
BIS,The Insolvency Service,08/04/2014,Accommodation,ESTATES,DERING PROPERTIES LTD,BA0000274262,900,
BIS,The Insolvency Service,08/04/2014,Accommodation,ESTATES,DERING PROPERTIES LTD,BA0000274258,"15,281.24",
BIS,The Insolvency Service,08/04/2014,Accommodation,ESTATES,DERING PROPERTIES LTD,BA0000274263,600,
BIS,The Insolvency Service,24/04/2014,Accommodation,ESTATES,DERING PROPERTIES LTD,BA0000274444,"7,243.75",
BIS,The Insolvency Service,08/04/2014,Accommodation,ESTATES,DERING PROPERTIES LTD,BA0000274259,"4,997.46",
BIS,The Insolvency Service,08/04/2014,Accommodation,ESTATES,DERING PROPERTIES LTD,BA0000274260,"2,643.77",
BIS,The Insolvency Service,29/04/2014,Employee Related Costs,PEOPLE & CAPABILITY                                                                                 ,DISCLOSURE SCOTLAND,BA0000274771,50,
BIS,The Insolvency Service,01/04/2014,Travel and Subsistence,"PLANNING, PERFORMANCE & PROJECTS                                                                    ",DRAKE CIRCUS LP,BA0000274739,12,
BIS,The Insolvency Service,01/04/2014,Travel and Subsistence,"PLANNING, PERFORMANCE & PROJECTS                                                                    ",DRAKE CIRCUS LP,BA0000274739,12,
BIS,The Insolvency Service,01/04/2014,Travel and Subsistence,"PLANNING, PERFORMANCE & PROJECTS                                                                    ",DRAKE CIRCUS LP,BA0000274739,12,
BIS,The Insolvency Service,01/04/2014,Computer and IT Systems,FINANCE AND COMMERCIAL,DRI EASEUS PARTITION M                                      ,BA0000274739,251.58,
BIS,The Insolvency Service,01/04/2014,Computer and IT Systems,FINANCE AND COMMERCIAL,DRI EXTENDED DOWNLOAD                                       ,BA0000274739,15.72,
BIS,The Insolvency Service,09/04/2014,Postage,INFORMATION TECHNOLOGY                                                                              ,DX NETWORK SERVICES LTD,BA0000274361,302.28,849741385
BIS,The Insolvency Service,09/04/2014,Postage,OFFICIAL RECEIVER SERVICES                                                                          ,DX NETWORK SERVICES LTD,BA0000274334,33.32,849741385
BIS,The Insolvency Service,09/04/2014,Postage,OFFICIAL RECEIVER SERVICES                                                                          ,DX NETWORK SERVICES LTD,BA0000274335,75,849741385
BIS,The Insolvency Service,09/04/2014,Postage,OFFICIAL RECEIVER SERVICES                                                                          ,DX NETWORK SERVICES LTD,BA0000274335,375,849741385
BIS,The Insolvency Service,09/04/2014,Postage,OFFICIAL RECEIVER SERVICES                                                                          ,DX NETWORK SERVICES LTD,BA0000274335,375,849741385
BIS,The Insolvency Service,09/04/2014,Postage,OFFICIAL RECEIVER SERVICES                                                                          ,DX NETWORK SERVICES LTD,BA0000274361,18.14,849741385
BIS,The Insolvency Service,09/04/2014,Postage,OFFICIAL RECEIVER SERVICES                                                                          ,DX NETWORK SERVICES LTD,BA0000274361,43.8,849741385
BIS,The Insolvency Service,09/04/2014,Postage,OFFICIAL RECEIVER SERVICES                                                                          ,DX NETWORK SERVICES LTD,BA0000274361,62,849741385
BIS,The Insolvency Service,09/04/2014,Postage,OFFICIAL RECEIVER SERVICES                                                                          ,DX NETWORK SERVICES LTD,BA0000274361,126.21,849741385
BIS,The Insolvency Service,09/04/2014,Postage,OFFICIAL RECEIVER SERVICES                                                                          ,DX NETWORK SERVICES LTD,BA0000274361,136.17,849741385
BIS,The Insolvency Service,09/04/2014,Postage,OFFICIAL RECEIVER SERVICES                                                                          ,DX NETWORK SERVICES LTD,BA0000274361,138.5,849741385
BIS,The Insolvency Service,09/04/2014,Postage,OFFICIAL RECEIVER SERVICES                                                                          ,DX NETWORK SERVICES LTD,BA0000274361,140.51,849741385
BIS,The Insolvency Service,09/04/2014,Postage,OFFICIAL RECEIVER SERVICES                                                                          ,DX NETWORK SERVICES LTD,BA0000274361,161.38,849741385
BIS,The Insolvency Service,09/04/2014,Postage,OFFICIAL RECEIVER SERVICES                                                                          ,DX NETWORK SERVICES LTD,BA0000274361,161.68,849741385
BIS,The Insolvency Service,09/04/2014,Postage,OFFICIAL RECEIVER SERVICES                                                                          ,DX NETWORK SERVICES LTD,BA0000274361,162.77,849741385
BIS,The Insolvency Service,09/04/2014,Postage,OFFICIAL RECEIVER SERVICES                                                                          ,DX NETWORK SERVICES LTD,BA0000274361,164.12,849741385
BIS,The Insolvency Service,09/04/2014,Postage,OFFICIAL RECEIVER SERVICES                                                                          ,DX NETWORK SERVICES LTD,BA0000274361,167.18,849741385
BIS,The Insolvency Service,09/04/2014,Postage,OFFICIAL RECEIVER SERVICES                                                                          ,DX NETWORK SERVICES LTD,BA0000274361,172.13,849741385
BIS,The Insolvency Service,09/04/2014,Postage,OFFICIAL RECEIVER SERVICES                                                                          ,DX NETWORK SERVICES LTD,BA0000274361,182.66,849741385
BIS,The Insolvency Service,09/04/2014,Postage,OFFICIAL RECEIVER SERVICES                                                                          ,DX NETWORK SERVICES LTD,BA0000274361,202.71,849741385
BIS,The Insolvency Service,09/04/2014,Postage,OFFICIAL RECEIVER SERVICES                                                                          ,DX NETWORK SERVICES LTD,BA0000274361,204.96,849741385
BIS,The Insolvency Service,09/04/2014,Postage,OFFICIAL RECEIVER SERVICES                                                                          ,DX NETWORK SERVICES LTD,BA0000274361,230.07,849741385
BIS,The Insolvency Service,09/04/2014,Postage,OFFICIAL RECEIVER SERVICES                                                                          ,DX NETWORK SERVICES LTD,BA0000274361,235.1,849741385
BIS,The Insolvency Service,09/04/2014,Postage,OFFICIAL RECEIVER SERVICES                                                                          ,DX NETWORK SERVICES LTD,BA0000274361,242.02,849741385
BIS,The Insolvency Service,09/04/2014,Postage,OFFICIAL RECEIVER SERVICES                                                                          ,DX NETWORK SERVICES LTD,BA0000274361,243.78,849741385
BIS,The Insolvency Service,09/04/2014,Postage,OFFICIAL RECEIVER SERVICES                                                                          ,DX NETWORK SERVICES LTD,BA0000274361,258.27,849741385
BIS,The Insolvency Service,09/04/2014,Postage,OFFICIAL RECEIVER SERVICES                                                                          ,DX NETWORK SERVICES LTD,BA0000274361,266.24,849741385
BIS,The Insolvency Service,09/04/2014,Postage,OFFICIAL RECEIVER SERVICES                                                                          ,DX NETWORK SERVICES LTD,BA0000274361,275.35,849741385
BIS,The Insolvency Service,09/04/2014,Postage,OFFICIAL RECEIVER SERVICES                                                                          ,DX NETWORK SERVICES LTD,BA0000274361,316.49,849741385
BIS,The Insolvency Service,09/04/2014,Postage,OFFICIAL RECEIVER SERVICES                                                                          ,DX NETWORK SERVICES LTD,BA0000274361,322.04,849741385
BIS,The Insolvency Service,09/04/2014,Postage,OFFICIAL RECEIVER SERVICES                                                                          ,DX NETWORK SERVICES LTD,BA0000274361,347.29,849741385
BIS,The Insolvency Service,09/04/2014,Postage,OFFICIAL RECEIVER SERVICES                                                                          ,DX NETWORK SERVICES LTD,BA0000274361,413.5,849741385
BIS,The Insolvency Service,09/04/2014,Postage,OFFICIAL RECEIVER SERVICES                                                                          ,DX NETWORK SERVICES LTD,BA0000274361,421.07,849741385
BIS,The Insolvency Service,09/04/2014,Postage,OFFICIAL RECEIVER SERVICES                                                                          ,DX NETWORK SERVICES LTD,BA0000274361,437.12,849741385
BIS,The Insolvency Service,30/04/2014,Accommodation,ESTATES,E.ON,BA0000274843,280.18,559097889
BIS,The Insolvency Service,30/04/2014,Accommodation,ESTATES,E.ON,BA0000274879,"1,519.56",559097889
BIS,The Insolvency Service,01/04/2014,Travel and Subsistence,FINANCE AND COMMERCIAL,EASYJET,BA0000274739,88.31,
BIS,The Insolvency Service,01/04/2014,Travel and Subsistence,FINANCE AND COMMERCIAL,EASYJET,BA0000274739,115.85,
BIS,The Insolvency Service,01/04/2014,Travel and Subsistence,OFFICIAL RECEIVER SERVICES                                                                          ,ECML NEWCASTLE PARKING,BA0000274739,15,
BIS,The Insolvency Service,09/04/2014,Accommodation,INVESTIGATION & ENFORCEMENT SERVICES                                                                ,EDM - EDM Group Ltd,BA0000274366,708.21,644894202
BIS,The Insolvency Service,09/04/2014,Accommodation,OFFICIAL RECEIVER SERVICES                                                                          ,EDM - EDM Group Ltd,BA0000274045,-63,644894202
BIS,The Insolvency Service,16/04/2014,Accommodation,EXTERNAL AFFAIRS                                                                                    ,EDM - EDM Group Ltd,BA0000274600,"1,582.43",644894202
BIS,The Insolvency Service,16/04/2014,Accommodation,OFFICIAL RECEIVER SERVICES                                                                          ,EDM - EDM Group Ltd,BA0000274604,"17,579.74",644894202
BIS,The Insolvency Service,30/04/2014,Accommodation,BUSINESS SERVICES DIRECTORATE                                                                       ,EDM - EDM Group Ltd,BA0000274854,97.81,644894202
BIS,The Insolvency Service,30/04/2014,Accommodation,BUSINESS SERVICES DIRECTORATE                                                                       ,EDM - EDM Group Ltd,BA0000274880,952.89,644894202
BIS,The Insolvency Service,30/04/2014,Accommodation,BUSINESS SERVICES DIRECTORATE                                                                       ,EDM - EDM Group Ltd,BA0000274855,122.09,644894202
BIS,The Insolvency Service,30/04/2014,Accommodation,BUSINESS SERVICES DIRECTORATE                                                                       ,EDM - EDM Group Ltd,BA0000274856,114.38,644894202
BIS,The Insolvency Service,30/04/2014,Accommodation,EXTERNAL AFFAIRS                                                                                    ,EDM - EDM Group Ltd,BA0000274653,-52.5,644894202
BIS,The Insolvency Service,25/04/2014,Computer and IT Systems,INFORMATION TECHNOLOGY                                                                              ,END2END SERVICES LTD,BA0000274705,"2,306.40",795376767
BIS,The Insolvency Service,16/04/2014,Legal Costs,FINANCE AND COMMERCIAL                                                                              ,EVERSHEDS  LLP (LEEDS),BA0000274601,"23,611.20",820704559
BIS,The Insolvency Service,04/04/2014,Agency Workers,CUSTOMER AND COMMUNICATIONS                                                                         ,EXECUTIVE BANDWIDTH LTD,BA0000274095,"12,750.18",
BIS,The Insolvency Service,09/04/2014,Agency Workers,"PLANNING, PERFORMANCE & PROJECTS                                                                    ",EXECUTIVE BANDWIDTH LTD,BA0000274355,"11,714.16",
BIS,The Insolvency Service,01/04/2014,Accommodation,ESTATES,EXETER CITY COUNCIL,BA0000273918,"63,142.00",
BIS,The Insolvency Service,01/04/2014,Accommodation,ESTATES,EXETER CITY COUNCIL,BA0000273907,"3,485.40",
BIS,The Insolvency Service,03/04/2014,Insolvency Case Related Costs,INVESTIGATION & ENFORCEMENT SERVICES                                                                ,EXPERIAN QAS LTD,BA0000274055,"2,269.74",887133593
BIS,The Insolvency Service,04/04/2014,Insolvency Case Related Costs,INVESTIGATION & ENFORCEMENT SERVICES                                                                ,EXPERIAN QAS LTD,BA0000274125,384,887133593
BIS,The Insolvency Service,15/04/2014,Insolvency Case Related Costs,OFFICIAL RECEIVER SERVICES                                                                          ,EXPERIAN QAS LTD,BA0000274519,"5,564.70",887133593
BIS,The Insolvency Service,01/04/2014,Travel and Subsistence,FINANCE AND COMMERCIAL,EXPRESS BY HOLIDAY                                          ,BA0000274739,150,
BIS,The Insolvency Service,01/04/2014,Telecoms,BUSINESS SERVICES DIRECTORATE                                                                       ,FASTHOSTS INTERNET,BA0000274739,105.91,
BIS,The Insolvency Service,01/04/2014,Travel and Subsistence,"PLANNING, PERFORMANCE & PROJECTS                                                                    ",FGW B/PW                                                    ,BA0000274739,7.6,
BIS,The Insolvency Service,01/04/2014,Travel and Subsistence,OFFICIAL RECEIVER SERVICES                                                                          ,FIRST GTR WESTERN,BA0000274739,15,
BIS,The Insolvency Service,01/04/2014,Travel and Subsistence,"PLANNING, PERFORMANCE & PROJECTS                                                                    ",FIRST GTR WESTERN,BA0000274739,7.8,
BIS,The Insolvency Service,01/04/2014,Travel and Subsistence,"PLANNING, PERFORMANCE & PROJECTS                                                                    ",FIRST GTR WESTERN,BA0000274739,7.8,
BIS,The Insolvency Service,01/04/2014,Travel and Subsistence,INVESTIGATION & ENFORCEMENT SERVICES                                                                ,FIRST GTR WESTERN,BA0000274739,19.8,
BIS,The Insolvency Service,01/04/2014,Travel and Subsistence,FINANCE AND COMMERCIAL,FLYBE,BA0000274739,230.67,
BIS,The Insolvency Service,01/04/2014,Travel and Subsistence,FINANCE AND COMMERCIAL,FLYBE,BA0000274739,59.99,
BIS,The Insolvency Service,01/04/2014,Travel and Subsistence,FINANCE AND COMMERCIAL,FLYBE,BA0000274739,150.79,
BIS,The Insolvency Service,01/04/2014,Travel and Subsistence,FINANCE AND COMMERCIAL,FLYBE,BA0000274739,126.27,
BIS,The Insolvency Service,01/04/2014,Travel and Subsistence,FINANCE AND COMMERCIAL,FLYBE,BA0000274739,194.62,
BIS,The Insolvency Service,01/04/2014,Travel and Subsistence,FINANCE AND COMMERCIAL,FLYBE,BA0000274739,196.51,
BIS,The Insolvency Service,15/04/2014,Accommodation,OFFICIAL RECEIVER SERVICES                                                                          ,FRANK G. BOWEN LTD,BA0000274570,102,238504366
BIS,The Insolvency Service,15/04/2014,Accommodation,OFFICIAL RECEIVER SERVICES                                                                          ,FRANK G. BOWEN LTD,BA0000274552,75.6,238504366
BIS,The Insolvency Service,16/04/2014,Insolvency Case Related Costs,OFFICIAL RECEIVER SERVICES                                                                          ,FRANK G. BOWEN LTD,BA0000274595,75.6,238504366
BIS,The Insolvency Service,01/04/2014,Accommodation,OFFICIAL RECEIVER SERVICES                                                                          ,FRONTIER PITTS LTD,BA0000274739,113.59,
BIS,The Insolvency Service,11/04/2014,Office Machinery,BUSINESS SERVICES DIRECTORATE                                                                       ,G4S FIRE & SECURITY SYSTEMS (UK) LTD                        ,BA0000274415,410.76,238560256
BIS,The Insolvency Service,14/04/2014,Telecoms,BUSINESS SERVICES DIRECTORATE                                                                       ,GAMMA BUSINESS COMMUNICATIONS LTD,BA0000274477,0.02,823820344
BIS,The Insolvency Service,14/04/2014,Telecoms,BUSINESS SERVICES DIRECTORATE                                                                       ,GAMMA BUSINESS COMMUNICATIONS LTD,BA0000274477,25.68,823820344
BIS,The Insolvency Service,14/04/2014,Telecoms,BUSINESS SERVICES DIRECTORATE                                                                       ,GAMMA BUSINESS COMMUNICATIONS LTD,BA0000274477,125.02,823820344
BIS,The Insolvency Service,14/04/2014,Telecoms,BUSINESS SERVICES DIRECTORATE                                                                       ,GAMMA BUSINESS COMMUNICATIONS LTD,BA0000274477,127.14,823820344
BIS,The Insolvency Service,14/04/2014,Telecoms,FACILITIES                                                                                          ,GAMMA BUSINESS COMMUNICATIONS LTD,BA0000274477,470.45,823820344
BIS,The Insolvency Service,14/04/2014,Telecoms,INFORMATION TECHNOLOGY                                                                              ,GAMMA BUSINESS COMMUNICATIONS LTD,BA0000274477,135.66,823820344
BIS,The Insolvency Service,14/04/2014,Telecoms,OFFICIAL RECEIVER SERVICES                                                                          ,GAMMA BUSINESS COMMUNICATIONS LTD,BA0000274477,0.33,823820344
BIS,The Insolvency Service,14/04/2014,Telecoms,OFFICIAL RECEIVER SERVICES                                                                          ,GAMMA BUSINESS COMMUNICATIONS LTD,BA0000274477,1.63,823820344
BIS,The Insolvency Service,14/04/2014,Telecoms,OFFICIAL RECEIVER SERVICES                                                                          ,GAMMA BUSINESS COMMUNICATIONS LTD,BA0000274477,48.52,823820344
BIS,The Insolvency Service,14/04/2014,Telecoms,OFFICIAL RECEIVER SERVICES                                                                          ,GAMMA BUSINESS COMMUNICATIONS LTD,BA0000274477,64.17,823820344
BIS,The Insolvency Service,14/04/2014,Telecoms,OFFICIAL RECEIVER SERVICES                                                                          ,GAMMA BUSINESS COMMUNICATIONS LTD,BA0000274477,72.38,823820344
BIS,The Insolvency Service,14/04/2014,Telecoms,OFFICIAL RECEIVER SERVICES                                                                          ,GAMMA BUSINESS COMMUNICATIONS LTD,BA0000274477,76.04,823820344
BIS,The Insolvency Service,14/04/2014,Telecoms,OFFICIAL RECEIVER SERVICES                                                                          ,GAMMA BUSINESS COMMUNICATIONS LTD,BA0000274477,76.19,823820344
BIS,The Insolvency Service,14/04/2014,Telecoms,OFFICIAL RECEIVER SERVICES                                                                          ,GAMMA BUSINESS COMMUNICATIONS LTD,BA0000274477,110.57,823820344
BIS,The Insolvency Service,14/04/2014,Telecoms,OFFICIAL RECEIVER SERVICES                                                                          ,GAMMA BUSINESS COMMUNICATIONS LTD,BA0000274477,121.57,823820344
BIS,The Insolvency Service,14/04/2014,Telecoms,OFFICIAL RECEIVER SERVICES                                                                          ,GAMMA BUSINESS COMMUNICATIONS LTD,BA0000274477,137.33,823820344
BIS,The Insolvency Service,14/04/2014,Telecoms,OFFICIAL RECEIVER SERVICES                                                                          ,GAMMA BUSINESS COMMUNICATIONS LTD,BA0000274477,149.53,823820344
BIS,The Insolvency Service,14/04/2014,Telecoms,OFFICIAL RECEIVER SERVICES                                                                          ,GAMMA BUSINESS COMMUNICATIONS LTD,BA0000274477,158.58,823820344
BIS,The Insolvency Service,14/04/2014,Telecoms,OFFICIAL RECEIVER SERVICES                                                                          ,GAMMA BUSINESS COMMUNICATIONS LTD,BA0000274477,173.23,823820344
BIS,The Insolvency Service,14/04/2014,Telecoms,OFFICIAL RECEIVER SERVICES                                                                          ,GAMMA BUSINESS COMMUNICATIONS LTD,BA0000274477,192.45,823820344
BIS,The Insolvency Service,14/04/2014,Telecoms,OFFICIAL RECEIVER SERVICES                                                                          ,GAMMA BUSINESS COMMUNICATIONS LTD,BA0000274477,229.78,823820344
BIS,The Insolvency Service,14/04/2014,Telecoms,OFFICIAL RECEIVER SERVICES                                                                          ,GAMMA BUSINESS COMMUNICATIONS LTD,BA0000274477,237.58,823820344
BIS,The Insolvency Service,14/04/2014,Telecoms,OFFICIAL RECEIVER SERVICES                                                                          ,GAMMA BUSINESS COMMUNICATIONS LTD,BA0000274477,239.22,823820344
BIS,The Insolvency Service,14/04/2014,Telecoms,OFFICIAL RECEIVER SERVICES                                                                          ,GAMMA BUSINESS COMMUNICATIONS LTD,BA0000274477,260.37,823820344
BIS,The Insolvency Service,14/04/2014,Telecoms,OFFICIAL RECEIVER SERVICES                                                                          ,GAMMA BUSINESS COMMUNICATIONS LTD,BA0000274477,428.65,823820344
BIS,The Insolvency Service,11/04/2014,Investigation and Enforcement Costs,INVESTIGATION & ENFORCEMENT SERVICES                                                                ,GRANT THORNTON,BA0000274440,"9,117.00",835586102
BIS,The Insolvency Service,01/04/2014,Accommodation,OFFICIAL RECEIVER SERVICES                                                                          ,GREENHAM TRADING LTD,BA0000274739,219.12,823820932
BIS,The Insolvency Service,01/04/2014,Accommodation,OFFICIAL RECEIVER SERVICES                                                                          ,GREENHAM TRADING LTD,BA0000274739,140.06,823820932
BIS,The Insolvency Service,15/04/2014,Accommodation,ESTATES,GREENHAM TRADING LTD,BA0000274545,47.12,823820932
BIS,The Insolvency Service,01/04/2014,Accommodation,ESTATES,GREENSIDE (OVER) LTD,BA0000273912,"42,000.00",676562985
BIS,The Insolvency Service,15/04/2014,Computer and IT Systems,INFORMATION TECHNOLOGY                                                                              ,HAGUE COMPUTER SUPPLIES,BA0000274522,895,333613774
BIS,The Insolvency Service,09/04/2014,Training Costs,INFORMATION TECHNOLOGY                                                                              ,HAVAS PEOPLE LTD.                                           ,BA0000274330,349,238478504
BIS,The Insolvency Service,04/04/2014,Agency Workers,BUSINESS SERVICES DIRECTORATE                                                                       ,HAYS OFFICE SUPPORT,BA0000274106,938,243358171
BIS,The Insolvency Service,04/04/2014,Agency Workers,BUSINESS SERVICES DIRECTORATE                                                                       ,HAYS OFFICE SUPPORT,BA0000274106,"1,464.11",243358171
BIS,The Insolvency Service,04/04/2014,Agency Workers,BUSINESS SERVICES DIRECTORATE                                                                       ,HAYS OFFICE SUPPORT,BA0000274106,"1,475.18",243358171
BIS,The Insolvency Service,04/04/2014,Agency Workers,BUSINESS SERVICES DIRECTORATE                                                                       ,HAYS OFFICE SUPPORT,BA0000274106,"3,835.85",243358171
BIS,The Insolvency Service,04/04/2014,Agency Workers,BUSINESS SERVICES DIRECTORATE                                                                       ,HAYS OFFICE SUPPORT,BA0000274106,"6,078.40",243358171
BIS,The Insolvency Service,04/04/2014,Agency Workers,BUSINESS SERVICES DIRECTORATE                                                                       ,HAYS OFFICE SUPPORT,BA0000274106,"6,336.59",243358171
BIS,The Insolvency Service,04/04/2014,Agency Workers,BUSINESS SERVICES DIRECTORATE                                                                       ,HAYS OFFICE SUPPORT,BA0000274106,"9,327.40",243358171
BIS,The Insolvency Service,04/04/2014,Agency Workers,BUSINESS SERVICES DIRECTORATE                                                                       ,HAYS OFFICE SUPPORT,BA0000274106,"11,932.25",243358171
BIS,The Insolvency Service,04/04/2014,Agency Workers,BUSINESS SERVICES DIRECTORATE                                                                       ,HAYS OFFICE SUPPORT,BA0000274106,"13,008.37",243358171
BIS,The Insolvency Service,04/04/2014,Agency Workers,BUSINESS SERVICES DIRECTORATE                                                                       ,HAYS OFFICE SUPPORT,BA0000274106,"27,955.93",243358171
BIS,The Insolvency Service,04/04/2014,Agency Workers,FINANCE AND COMMERCIAL,HAYS OFFICE SUPPORT,BA0000274106,"2,158.40",243358171
BIS,The Insolvency Service,04/04/2014,Agency Workers,INFORMATION TECHNOLOGY                                                                              ,HAYS OFFICE SUPPORT,BA0000274106,"21,168.84",243358171
BIS,The Insolvency Service,04/04/2014,Agency Workers,INVESTIGATION & ENFORCEMENT SERVICES                                                                ,HAYS OFFICE SUPPORT,BA0000274106,"1,242.00",243358171
BIS,The Insolvency Service,04/04/2014,Agency Workers,INVESTIGATION & ENFORCEMENT SERVICES                                                                ,HAYS OFFICE SUPPORT,BA0000274106,"2,241.63",243358171
BIS,The Insolvency Service,04/04/2014,Agency Workers,INVESTIGATION & ENFORCEMENT SERVICES                                                                ,HAYS OFFICE SUPPORT,BA0000274106,"4,187.90",243358171
BIS,The Insolvency Service,04/04/2014,Agency Workers,INVESTIGATION & ENFORCEMENT SERVICES                                                                ,HAYS OFFICE SUPPORT,BA0000274106,"9,280.18",243358171
BIS,The Insolvency Service,04/04/2014,Agency Workers,Official Receiver Operations - Central and Eastern Region,HAYS OFFICE SUPPORT,BA0000274106,367.27,243358171
BIS,The Insolvency Service,04/04/2014,Agency Workers,OFFICIAL RECEIVER SERVICES                                                                          ,HAYS OFFICE SUPPORT,BA0000274106,"1,414.55",243358171
BIS,The Insolvency Service,04/04/2014,Agency Workers,OFFICIAL RECEIVER SERVICES                                                                          ,HAYS OFFICE SUPPORT,BA0000274106,"1,735.93",243358171
BIS,The Insolvency Service,04/04/2014,Agency Workers,OFFICIAL RECEIVER SERVICES                                                                          ,HAYS OFFICE SUPPORT,BA0000274106,"1,786.80",243358171
BIS,The Insolvency Service,04/04/2014,Agency Workers,OFFICIAL RECEIVER SERVICES                                                                          ,HAYS OFFICE SUPPORT,BA0000274106,"1,863.04",243358171
BIS,The Insolvency Service,04/04/2014,Agency Workers,OFFICIAL RECEIVER SERVICES                                                                          ,HAYS OFFICE SUPPORT,BA0000274106,"1,914.80",243358171
BIS,The Insolvency Service,04/04/2014,Agency Workers,OFFICIAL RECEIVER SERVICES                                                                          ,HAYS OFFICE SUPPORT,BA0000274106,"2,128.08",243358171
BIS,The Insolvency Service,04/04/2014,Agency Workers,OFFICIAL RECEIVER SERVICES                                                                          ,HAYS OFFICE SUPPORT,BA0000274106,"2,256.45",243358171
BIS,The Insolvency Service,04/04/2014,Agency Workers,OFFICIAL RECEIVER SERVICES                                                                          ,HAYS OFFICE SUPPORT,BA0000274106,"2,272.00",243358171
BIS,The Insolvency Service,04/04/2014,Agency Workers,OFFICIAL RECEIVER SERVICES                                                                          ,HAYS OFFICE SUPPORT,BA0000274106,"2,467.73",243358171
BIS,The Insolvency Service,04/04/2014,Agency Workers,OFFICIAL RECEIVER SERVICES                                                                          ,HAYS OFFICE SUPPORT,BA0000274106,"3,066.59",243358171
BIS,The Insolvency Service,04/04/2014,Agency Workers,OFFICIAL RECEIVER SERVICES                                                                          ,HAYS OFFICE SUPPORT,BA0000274106,"3,191.32",243358171
BIS,The Insolvency Service,04/04/2014,Agency Workers,OFFICIAL RECEIVER SERVICES                                                                          ,HAYS OFFICE SUPPORT,BA0000274106,"5,004.00",243358171
BIS,The Insolvency Service,04/04/2014,Agency Workers,OFFICIAL RECEIVER SERVICES                                                                          ,HAYS OFFICE SUPPORT,BA0000274106,"8,373.24",243358171
BIS,The Insolvency Service,04/04/2014,Agency Workers,OFFICIAL RECEIVER SERVICES                                                                          ,HAYS OFFICE SUPPORT,BA0000274106,"13,730.20",243358171
BIS,The Insolvency Service,04/04/2014,Agency Workers,OFFICIAL RECEIVER SERVICES                                                                          ,HAYS OFFICE SUPPORT,BA0000274106,"14,979.36",243358171
BIS,The Insolvency Service,04/04/2014,Agency Workers,PEOPLE & CAPABILITY                                                                                 ,HAYS OFFICE SUPPORT,BA0000274106,"2,211.40",243358171
BIS,The Insolvency Service,04/04/2014,Agency Workers,"PLANNING, PERFORMANCE & PROJECTS                                                                    ",HAYS OFFICE SUPPORT,BA0000274106,"3,172.08",243358171
BIS,The Insolvency Service,04/04/2014,Agency Workers,"PLANNING, PERFORMANCE & PROJECTS                                                                    ",HAYS OFFICE SUPPORT,BA0000274106,"7,624.61",243358171
BIS,The Insolvency Service,11/04/2014,Agency Workers,FINANCE AND COMMERCIAL,HAYS SPECIALIST RECRUITMENT LTD,BA0000274445,"2,294.16",773695871
BIS,The Insolvency Service,11/04/2014,Agency Workers,FINANCE AND COMMERCIAL,HAYS SPECIALIST RECRUITMENT LTD,BA0000274448,"2,179.45",773695871
BIS,The Insolvency Service,11/04/2014,Agency Workers,FINANCE AND COMMERCIAL,HAYS SPECIALIST RECRUITMENT LTD,BA0000274449,"1,835.33",773695871
BIS,The Insolvency Service,11/04/2014,Agency Workers,FINANCE AND COMMERCIAL,HAYS SPECIALIST RECRUITMENT LTD,BA0000274446,"2,294.16",773695871
BIS,The Insolvency Service,11/04/2014,Agency Workers,FINANCE AND COMMERCIAL,HAYS SPECIALIST RECRUITMENT LTD,BA0000274447,"2,294.16",773695871
BIS,The Insolvency Service,14/04/2014,Agency Workers,FINANCE AND COMMERCIAL,HAYS SPECIALIST RECRUITMENT LTD,BA0000274479,"2,294.16",773695871
BIS,The Insolvency Service,14/04/2014,Agency Workers,FINANCE AND COMMERCIAL,HAYS SPECIALIST RECRUITMENT LTD,BA0000274480,"1,835.33",773695871
BIS,The Insolvency Service,14/04/2014,Agency Workers,FINANCE AND COMMERCIAL,HAYS SPECIALIST RECRUITMENT LTD,BA0000274481,"2,294.16",773695871
BIS,The Insolvency Service,14/04/2014,Agency Workers,FINANCE AND COMMERCIAL,HAYS SPECIALIST RECRUITMENT LTD,BA0000274497,"2,294.16",773695871
BIS,The Insolvency Service,14/04/2014,Agency Workers,FINANCE AND COMMERCIAL,HAYS SPECIALIST RECRUITMENT LTD,BA0000274498,"2,294.16",773695871
BIS,The Insolvency Service,01/04/2014,Travel and Subsistence,FINANCE AND COMMERCIAL,HILTON BRUSSELS CITY                                        ,BA0000274739,117.01,
BIS,The Insolvency Service,01/04/2014,Travel and Subsistence,FINANCE AND COMMERCIAL,HILTON BRUSSELS CITY                                        ,BA0000274739,3.22,
BIS,The Insolvency Service,07/04/2014,Investigation and Enforcement Costs,OFFICIAL RECEIVER SERVICES                                                                          ,HMCTS,BA0000274188,465,
BIS,The Insolvency Service,10/04/2014,Investigation and Enforcement Costs,OFFICIAL RECEIVER SERVICES                                                                          ,HMCTS,BA0000274241,45,
BIS,The Insolvency Service,10/04/2014,Investigation and Enforcement Costs,OFFICIAL RECEIVER SERVICES                                                                          ,HMCTS,BA0000274242,465,
BIS,The Insolvency Service,16/04/2014,Investigation and Enforcement Costs,OFFICIAL RECEIVER SERVICES                                                                          ,HMCTS,BA0000274420,465,
BIS,The Insolvency Service,30/04/2014,Investigation and Enforcement Costs,OFFICIAL RECEIVER SERVICES                                                                          ,HMCTS,BA0000274838,480,
BIS,The Insolvency Service,30/04/2014,Investigation and Enforcement Costs,OFFICIAL RECEIVER SERVICES                                                                          ,HMCTS,BA0000274815,465,
BIS,The Insolvency Service,01/04/2014,Travel and Subsistence,FINANCE AND COMMERCIAL,HOTELSMART,BA0000274739,84,
BIS,The Insolvency Service,04/04/2014,Investigation and Enforcement Costs,INVESTIGATION & ENFORCEMENT SERVICES                                                                ,HOWES PERCIVAL,BA0000274091,"13,000.00",
BIS,The Insolvency Service,04/04/2014,Insolvency Case Related Costs,OFFICIAL RECEIVER SERVICES                                                                          ,HPI LTD,BA0000274115,4.74,942407139
BIS,The Insolvency Service,04/04/2014,Insolvency Case Related Costs,OFFICIAL RECEIVER SERVICES                                                                          ,HPI LTD,BA0000274116,70.48,942407139
BIS,The Insolvency Service,04/04/2014,Insolvency Case Related Costs,OFFICIAL RECEIVER SERVICES                                                                          ,HPI LTD,BA0000274126,154.78,942407139
BIS,The Insolvency Service,07/04/2014,Insolvency Case Related Costs,OFFICIAL RECEIVER SERVICES                                                                          ,HPI LTD,BA0000274187,96.82,942407139
BIS,The Insolvency Service,07/04/2014,Insolvency Case Related Costs,OFFICIAL RECEIVER SERVICES                                                                          ,HPI LTD,BA0000274194,28.78,942407139
BIS,The Insolvency Service,09/04/2014,Insolvency Case Related Costs,OFFICIAL RECEIVER SERVICES                                                                          ,HPI LTD,BA0000274251,7,942407139
BIS,The Insolvency Service,09/04/2014,Insolvency Case Related Costs,OFFICIAL RECEIVER SERVICES                                                                          ,HPI LTD,BA0000274264,81.4,942407139
BIS,The Insolvency Service,29/04/2014,Insolvency Case Related Costs,OFFICIAL RECEIVER SERVICES                                                                          ,HPI LTD,BA0000274807,102.34,942407139
BIS,The Insolvency Service,29/04/2014,Insolvency Case Related Costs,OFFICIAL RECEIVER SERVICES                                                                          ,HPI LTD,BA0000274808,100.24,942407139
BIS,The Insolvency Service,01/04/2014,Travel and Subsistence,FINANCE AND COMMERCIAL,HRG UK,BA0000274739,5.65,
BIS,The Insolvency Service,01/04/2014,Travel and Subsistence,FINANCE AND COMMERCIAL,HRG UK,BA0000274739,6.51,
BIS,The Insolvency Service,01/04/2014,Travel and Subsistence,FINANCE AND COMMERCIAL,HRG UK,BA0000274739,5.49,
BIS,The Insolvency Service,01/04/2014,Travel and Subsistence,FINANCE AND COMMERCIAL,HRG UK,BA0000274739,5.81,
BIS,The Insolvency Service,01/04/2014,Travel and Subsistence,FINANCE AND COMMERCIAL,HRG UK,BA0000274739,6.03,
BIS,The Insolvency Service,01/04/2014,Travel and Subsistence,FINANCE AND COMMERCIAL,HRG UK,BA0000274739,5.88,
BIS,The Insolvency Service,01/04/2014,Travel and Subsistence,FINANCE AND COMMERCIAL,HRG UK,BA0000274739,6.29,
BIS,The Insolvency Service,07/04/2014,Agency Workers,FINANCE AND COMMERCIAL,HUDSON GLOBAL RESOURCES LTD,BA0000274206,"2,376.00",
BIS,The Insolvency Service,25/04/2014,Agency Workers,FINANCE AND COMMERCIAL,HUDSON GLOBAL RESOURCES LTD,BA0000274703,"1,348.42",
BIS,The Insolvency Service,25/04/2014,Agency Workers,FINANCE AND COMMERCIAL,HUDSON GLOBAL RESOURCES LTD,BA0000274704,"2,247.36",
BIS,The Insolvency Service,29/04/2014,Agency Workers,FINANCE AND COMMERCIAL,HUDSON GLOBAL RESOURCES LTD,BA0000274755,"1,797.89",
BIS,The Insolvency Service,09/04/2014,Employee Related Costs,EXTERNAL AFFAIRS                                                                                    ,IAIR - International  Associaiotion of Insovency Regulators ,BA0000274341,"1,052.00",
BIS,The Insolvency Service,01/04/2014,Travel and Subsistence,FINANCE AND COMMERCIAL,IBIS LONDON CITY                                            ,BA0000274739,375,
BIS,The Insolvency Service,01/04/2014,Travel and Subsistence,FINANCE AND COMMERCIAL,IBIS LONDON CITY                                            ,BA0000274739,120,
BIS,The Insolvency Service,01/04/2014,Travel and Subsistence,FINANCE AND COMMERCIAL,IBIS SWANSEA                                                ,BA0000274739,54,
BIS,The Insolvency Service,01/04/2014,Travel and Subsistence,FINANCE AND COMMERCIAL,IBIS SWANSEA                                                ,BA0000274739,54,
BIS,The Insolvency Service,09/04/2014,Computer and IT Systems,INFORMATION TECHNOLOGY                                                                              ,IMAGESTORE LIMITED                                          ,BA0000274340,"1,887.30",614847430
BIS,The Insolvency Service,03/04/2014,Insolvency Case Related Costs,OFFICIAL RECEIVER SERVICES                                                                          ,INSOLVENCY SERVICE,BA0000274046,40,
BIS,The Insolvency Service,11/04/2014,Insolvency Case Related Costs,OFFICIAL RECEIVER SERVICES                                                                          ,INSOLVENCY SERVICE,BA0000274421,60,
BIS,The Insolvency Service,16/04/2014,Insolvency Case Related Costs,OFFICIAL RECEIVER SERVICES                                                                          ,INSOLVENCY SERVICE,BA0000274592,120,
BIS,The Insolvency Service,30/04/2014,Insolvency Case Related Costs,OFFICIAL RECEIVER SERVICES                                                                          ,INSOLVENCY SERVICE,BA0000274842,640,
BIS,The Insolvency Service,02/04/2014,Insolvency Case Related Costs,FINANCE AND COMMERCIAL,INSOLVENCY SERVICE,BA0000273976,67.89,
BIS,The Insolvency Service,25/04/2014,Insolvency Case Related Costs,FINANCE AND COMMERCIAL,INSOLVENCY SERVICE,BA0000274688,"19,901.05",
BIS,The Insolvency Service,30/04/2014,Accounting and Banking,BUSINESS SERVICES DIRECTORATE                                                                       ,INSOLVENCY SERVICES ACCOUNT,BA0000274844,10,
BIS,The Insolvency Service,07/04/2014,Agency Workers,FINANCE AND COMMERCIAL,INTERQUEST GROUP (FORMALLY SAND RESOURCES LTD)              ,BA0000274202,"12,791.04",820437161
BIS,The Insolvency Service,07/04/2014,Agency Workers,"PLANNING, PERFORMANCE & PROJECTS                                                                    ",INTERQUEST GROUP (FORMALLY SAND RESOURCES LTD)              ,BA0000274205,"11,152.32",820437161
BIS,The Insolvency Service,11/04/2014,Agency Workers,"PLANNING, PERFORMANCE & PROJECTS                                                                    ",INTERQUEST GROUP (FORMALLY SAND RESOURCES LTD)              ,BA0000274456,557.62,820437161
BIS,The Insolvency Service,11/04/2014,Computer and IT Systems,INFORMATION TECHNOLOGY                                                                              ,INTERQUEST GROUP (FORMALLY SAND RESOURCES LTD)              ,BA0000274451,"6,820.20",820437161
BIS,The Insolvency Service,14/04/2014,Computer and IT Systems,"PLANNING, PERFORMANCE & PROJECTS                                                                    ",INTERQUEST GROUP (FORMALLY SAND RESOURCES LTD)              ,BA0000274505,"4,807.00",820437161
BIS,The Insolvency Service,29/04/2014,Accommodation,INVESTIGATION & ENFORCEMENT SERVICES                                                                ,IRON MOUNTAIN (UK) LTD,BA0000274803,27.31,607937516
BIS,The Insolvency Service,03/04/2014,Office Supplies and Services,INFORMATION TECHNOLOGY                                                                              ,IT GOVERNANCE LTD                                           ,BA0000274048,629.94,927593583
BIS,The Insolvency Service,07/04/2014,Insolvency Case Related Costs,FINANCE AND COMMERCIAL,JEFFREY GREEN RUSSELL ltd                                   ,BA0000273978,"1,165.00",
BIS,The Insolvency Service,15/04/2014,Accommodation,ESTATES,JONES LANG LASALLE,BA0000274537,"8,687.11",245894718
BIS,The Insolvency Service,01/04/2014,Travel and Subsistence,FINANCE AND COMMERCIAL,JURYS INN BIRMINGHAM,BA0000274739,72,
BIS,The Insolvency Service,09/04/2014,Translation Costs,OFFICIAL RECEIVER SERVICES                                                                          ,K INTERNATIONAL PLC,BA0000274344,"1,363.06",600413800
BIS,The Insolvency Service,03/04/2014,Telecoms,OFFICIAL RECEIVER SERVICES                                                                          ,KCOM GROUP PLC,BA0000274047,289.98,647235137
BIS,The Insolvency Service,07/04/2014,Accounting and Banking,FINANCE AND COMMERCIAL,KDS UK LTD,BA0000274204,"2,786.40",776463881
BIS,The Insolvency Service,01/04/2014,Office Supplies and Services,BUSINESS SERVICES DIRECTORATE                                                                       ,KENROY THOMPSON,BA0000274739,9.59,
BIS,The Insolvency Service,02/04/2014,Accommodation,ESTATES,KINGSTON (SENATE) LTD,BA0000273975,"41,625.60",140357635
BIS,The Insolvency Service,01/04/2014,Telecoms,INFORMATION TECHNOLOGY                                                                              ,KINGSTON COMMUNICATIONS,BA0000274739,140.82,647235137
BIS,The Insolvency Service,01/04/2014,Accommodation,ESTATES,KINGSTON UPON HULL CITY COUNCIL,BA0000273920,"31,571.00",
BIS,The Insolvency Service,09/04/2014,Accounting and Banking,FINANCE AND COMMERCIAL,KYPERA LTD,BA0000274342,"4,056.30",813905437
BIS,The Insolvency Service,09/04/2014,Accounting and Banking,FINANCE AND COMMERCIAL,KYPERA LTD,BA0000274343,"11,866.08",813905437
BIS,The Insolvency Service,03/04/2014,Agency Workers,INFORMATION TECHNOLOGY                                                                              ,LA INTERNATIONAL COMPUTER CONSULTANTS LTD,BA0000274037,"11,020.72",
BIS,The Insolvency Service,07/04/2014,Accommodation,ESTATES,LAMBERT SMITH HAMPTON,BA0000274192,420,
BIS,The Insolvency Service,07/04/2014,Accommodation,ESTATES,LAMBERT SMITH HAMPTON,BA0000274183,"50,000.00",
BIS,The Insolvency Service,09/04/2014,Investigation and Enforcement Costs,INVESTIGATION & ENFORCEMENT SERVICES                                                                ,LARKING GOWEN,BA0000274369,"6,511.66",
BIS,The Insolvency Service,01/04/2014,Insolvency Case Related Costs,OFFICIAL RECEIVER SERVICES                                                                          ,LBRUT INTERNET                                              ,BA0000274739,-10.17,
BIS,The Insolvency Service,01/04/2014,Insolvency Case Related Costs,OFFICIAL RECEIVER SERVICES                                                                          ,LBRUT INTERNET                                              ,BA0000274739,10.17,
BIS,The Insolvency Service,01/04/2014,Accommodation,ESTATES,LEEDS CITY COUNCIL,BA0000273914,"98,328.00",
BIS,The Insolvency Service,04/04/2014,Office Supplies and Services,OFFICIAL RECEIVER SERVICES                                                                          ,LEXISNEXIS UK (LEXISNEXIS BUTTERWORTHS),BA0000274107,"9,015.60",730859520
BIS,The Insolvency Service,04/04/2014,Office Supplies and Services,OFFICIAL RECEIVER SERVICES                                                                          ,LEXISNEXIS UK (LEXISNEXIS BUTTERWORTHS),BA0000274107,"17,883.60",730859520
BIS,The Insolvency Service,07/04/2014,Office Supplies and Services,OFFICIAL RECEIVER SERVICES                                                                          ,LEXISNEXIS UK (LEXISNEXIS BUTTERWORTHS),BA0000274186,492.42,730859520
BIS,The Insolvency Service,01/04/2014,Travel and Subsistence,INVESTIGATION & ENFORCEMENT SERVICES                                                                ,LONDON & SOUTH EAS,BA0000274739,11.4,
BIS,The Insolvency Service,07/04/2014,Insolvency Case Related Costs,OFFICIAL RECEIVER SERVICES                                                                          ,LONDON HOUSE INTERNATIONAL LTD,BA0000274164,"6,672.00",650755433
BIS,The Insolvency Service,07/04/2014,Investigation and Enforcement Costs,INVESTIGATION & ENFORCEMENT SERVICES                                                                ,LONDON HOUSE INTERNATIONAL LTD,BA0000274164,408,650755433
BIS,The Insolvency Service,07/04/2014,Investigation and Enforcement Costs,OFFICIAL RECEIVER SERVICES                                                                          ,LONDON HOUSE INTERNATIONAL LTD,BA0000274164,780,650755433
BIS,The Insolvency Service,01/04/2014,Travel and Subsistence,INVESTIGATION & ENFORCEMENT SERVICES                                                                ,LUL TICKET MACHINE,BA0000274739,9,
BIS,The Insolvency Service,01/04/2014,Travel and Subsistence,INVESTIGATION & ENFORCEMENT SERVICES                                                                ,LUL TICKET MACHINE,BA0000274739,9,
BIS,The Insolvency Service,01/04/2014,Travel and Subsistence,INVESTIGATION & ENFORCEMENT SERVICES                                                                ,LUL TICKET MACHINE,BA0000274739,20,
BIS,The Insolvency Service,01/04/2014,Travel and Subsistence,OFFICIAL RECEIVER SERVICES                                                                          ,LUL TICKET MACHINE,BA0000274739,15,
BIS,The Insolvency Service,01/04/2014,Travel and Subsistence,OFFICIAL RECEIVER SERVICES                                                                          ,LUL TICKET MACHINE,BA0000274739,30,
BIS,The Insolvency Service,01/04/2014,Travel and Subsistence,INVESTIGATION & ENFORCEMENT SERVICES                                                                ,LUL TICKET MACHINE,BA0000274739,9,
BIS,The Insolvency Service,01/04/2014,Travel and Subsistence,INVESTIGATION & ENFORCEMENT SERVICES                                                                ,LUL TICKET MACHINE,BA0000274739,7,
BIS,The Insolvency Service,01/04/2014,Travel and Subsistence,INVESTIGATION & ENFORCEMENT SERVICES                                                                ,LUL TICKET MACHINE,BA0000274739,8.9,
BIS,The Insolvency Service,01/04/2014,Travel and Subsistence,INVESTIGATION & ENFORCEMENT SERVICES                                                                ,LUL TICKET MACHINE,BA0000274739,4.7,
BIS,The Insolvency Service,01/04/2014,Travel and Subsistence,INVESTIGATION & ENFORCEMENT SERVICES                                                                ,LUL TICKET MACHINE,BA0000274739,30,
BIS,The Insolvency Service,01/04/2014,Travel and Subsistence,INVESTIGATION & ENFORCEMENT SERVICES                                                                ,LUL TICKET OFFICE,BA0000274739,20,
BIS,The Insolvency Service,01/04/2014,Travel and Subsistence,OFFICIAL RECEIVER SERVICES                                                                          ,LUL TICKET OFFICE,BA0000274739,45,
BIS,The Insolvency Service,01/04/2014,Travel and Subsistence,INVESTIGATION & ENFORCEMENT SERVICES                                                                ,LUL TICKET OFFICE,BA0000274739,20,
BIS,The Insolvency Service,01/04/2014,Travel and Subsistence,BUSINESS SERVICES DIRECTORATE                                                                       ,M6 TOLL,BA0000274739,4,
BIS,The Insolvency Service,01/04/2014,Travel and Subsistence,BUSINESS SERVICES DIRECTORATE                                                                       ,M6 TOLL,BA0000274739,4,
BIS,The Insolvency Service,01/04/2014,Training Costs,FINANCE AND COMMERCIAL,MEASUREUP.COM                                               ,BA0000274739,65,
BIS,The Insolvency Service,01/04/2014,Travel and Subsistence,FINANCE AND COMMERCIAL,METROPOLE  HOTEL - FIDEL                                    ,BA0000274739,125.52,
BIS,The Insolvency Service,01/04/2014,Travel and Subsistence,FINANCE AND COMMERCIAL,METROPOLE  HOTEL - FIDEL                                    ,BA0000274739,3.45,
BIS,The Insolvency Service,01/04/2014,Agency Workers,CUSTOMER AND COMMUNICATIONS                                                                         ,MICHAEL PAGE INTERNATIONAL RECRUITMENT LTD,BA0000273913,"1,539.60",354259936
BIS,The Insolvency Service,01/04/2014,Agency Workers,CUSTOMER AND COMMUNICATIONS                                                                         ,MICHAEL PAGE INTERNATIONAL RECRUITMENT LTD,BA0000273917,"1,650.06",354259936
BIS,The Insolvency Service,07/04/2014,Agency Workers,FINANCE AND COMMERCIAL                                                                              ,MICHAEL PAGE INTERNATIONAL RECRUITMENT LTD,BA0000274200,"2,666.40",354259936
BIS,The Insolvency Service,07/04/2014,Agency Workers,CUSTOMER AND COMMUNICATIONS                                                                         ,MICHAEL PAGE INTERNATIONAL RECRUITMENT LTD,BA0000274177,"2,640.00",354259936
BIS,The Insolvency Service,07/04/2014,Agency Workers,CUSTOMER AND COMMUNICATIONS                                                                         ,MICHAEL PAGE INTERNATIONAL RECRUITMENT LTD,BA0000274178,"1,650.06",354259936
BIS,The Insolvency Service,07/04/2014,Agency Workers,CUSTOMER AND COMMUNICATIONS                                                                         ,MICHAEL PAGE INTERNATIONAL RECRUITMENT LTD,BA0000274179,"1,609.86",354259936
BIS,The Insolvency Service,09/04/2014,Agency Workers,CUSTOMER AND COMMUNICATIONS                                                                         ,MICHAEL PAGE INTERNATIONAL RECRUITMENT LTD,BA0000274350,"2,640.00",354259936
BIS,The Insolvency Service,09/04/2014,Agency Workers,CUSTOMER AND COMMUNICATIONS                                                                         ,MICHAEL PAGE INTERNATIONAL RECRUITMENT LTD,BA0000274360,"1,539.60",354259936
BIS,The Insolvency Service,11/04/2014,Agency Workers,CUSTOMER AND COMMUNICATIONS                                                                         ,MICHAEL PAGE INTERNATIONAL RECRUITMENT LTD,BA0000274441,"1,584.00",354259936
BIS,The Insolvency Service,14/04/2014,Agency Workers,FINANCE AND COMMERCIAL                                                                              ,MICHAEL PAGE INTERNATIONAL RECRUITMENT LTD,BA0000274501,"2,666.40",354259936
BIS,The Insolvency Service,14/04/2014,Agency Workers,CUSTOMER AND COMMUNICATIONS                                                                         ,MICHAEL PAGE INTERNATIONAL RECRUITMENT LTD,BA0000274503,"1,609.86",354259936
BIS,The Insolvency Service,14/04/2014,Agency Workers,CUSTOMER AND COMMUNICATIONS                                                                         ,MICHAEL PAGE INTERNATIONAL RECRUITMENT LTD,BA0000274504,"1,650.06",354259936
BIS,The Insolvency Service,23/04/2014,Agency Workers,CUSTOMER AND COMMUNICATIONS                                                                         ,MICHAEL PAGE INTERNATIONAL RECRUITMENT LTD,BA0000274611,"1,539.60",354259936
BIS,The Insolvency Service,25/04/2014,Agency Workers,FINANCE AND COMMERCIAL                                                                              ,MICHAEL PAGE INTERNATIONAL RECRUITMENT LTD,BA0000274689,"2,133.12",354259936
BIS,The Insolvency Service,25/04/2014,Agency Workers,CUSTOMER AND COMMUNICATIONS                                                                         ,MICHAEL PAGE INTERNATIONAL RECRUITMENT LTD,BA0000274690,"2,112.00",354259936
BIS,The Insolvency Service,25/04/2014,Agency Workers,CUSTOMER AND COMMUNICATIONS                                                                         ,MICHAEL PAGE INTERNATIONAL RECRUITMENT LTD,BA0000274691,"1,231.68",354259936
BIS,The Insolvency Service,25/04/2014,Agency Workers,CUSTOMER AND COMMUNICATIONS                                                                         ,MICHAEL PAGE INTERNATIONAL RECRUITMENT LTD,BA0000274692,"1,320.05",354259936
BIS,The Insolvency Service,25/04/2014,Agency Workers,CUSTOMER AND COMMUNICATIONS                                                                         ,MICHAEL PAGE INTERNATIONAL RECRUITMENT LTD,BA0000274693,"1,287.89",354259936
BIS,The Insolvency Service,29/04/2014,Agency Workers,FINANCE AND COMMERCIAL                                                                              ,MICHAEL PAGE INTERNATIONAL RECRUITMENT LTD,BA0000274757,"2,133.12",354259936
BIS,The Insolvency Service,29/04/2014,Agency Workers,CUSTOMER AND COMMUNICATIONS                                                                         ,MICHAEL PAGE INTERNATIONAL RECRUITMENT LTD,BA0000274751,"1,231.68",354259936
BIS,The Insolvency Service,29/04/2014,Agency Workers,CUSTOMER AND COMMUNICATIONS                                                                         ,MICHAEL PAGE INTERNATIONAL RECRUITMENT LTD,BA0000274752,"1,320.05",354259936
BIS,The Insolvency Service,29/04/2014,Agency Workers,CUSTOMER AND COMMUNICATIONS                                                                         ,MICHAEL PAGE INTERNATIONAL RECRUITMENT LTD,BA0000274791,"2,112.00",354259936
BIS,The Insolvency Service,29/04/2014,Agency Workers,CUSTOMER AND COMMUNICATIONS                                                                         ,MICHAEL PAGE INTERNATIONAL RECRUITMENT LTD,BA0000274792,"1,126.91",354259936
BIS,The Insolvency Service,09/04/2014,Accommodation,ESTATES,MIDDLESBROUGH COUNCIL                                       ,BA0000274367,256.92,734213854
BIS,The Insolvency Service,11/04/2014,Employee Related Costs,INFORMATION TECHNOLOGY                                                                              ,MONSTER.CO.UK,BA0000274416,238.8,
BIS,The Insolvency Service,01/04/2014,Travel and Subsistence,OFFICIAL RECEIVER SERVICES                                                                          ,NCP PARKING,BA0000274739,6,
BIS,The Insolvency Service,01/04/2014,Travel and Subsistence,OFFICIAL RECEIVER SERVICES                                                                          ,NCP PARKING,BA0000274739,3.6,
BIS,The Insolvency Service,01/04/2014,Travel and Subsistence,OFFICIAL RECEIVER SERVICES                                                                          ,NCP PARKING,BA0000274739,3.6,
BIS,The Insolvency Service,01/04/2014,Travel and Subsistence,BUSINESS SERVICES DIRECTORATE                                                                       ,NCP PARKING,BA0000274739,9.5,
BIS,The Insolvency Service,01/04/2014,Travel and Subsistence,OFFICIAL RECEIVER SERVICES                                                                          ,NCP PARKING,BA0000274739,6,
BIS,The Insolvency Service,01/04/2014,Travel and Subsistence,OFFICIAL RECEIVER SERVICES                                                                          ,NCP PARKING,BA0000274739,18,
BIS,The Insolvency Service,01/04/2014,Travel and Subsistence,OFFICIAL RECEIVER SERVICES                                                                          ,NCP PARKING,BA0000274739,6,
BIS,The Insolvency Service,04/04/2014,Office Supplies and Services,OFFICIAL RECEIVER SERVICES                                                                          ,NEOPOST LIMITED (CONSUMABLES),BA0000274114,342.06,597265489
BIS,The Insolvency Service,29/04/2014,Office Supplies and Services,OFFICIAL RECEIVER SERVICES                                                                          ,NEOPOST LIMITED (CONSUMABLES),BA0000274804,204.59,597265489
BIS,The Insolvency Service,30/04/2014,Office Supplies and Services,OFFICIAL RECEIVER SERVICES                                                                          ,NEOPOST LIMITED (CONSUMABLES),BA0000274839,161.36,597265489
BIS,The Insolvency Service,01/04/2014,Office Supplies and Services,FINANCE AND COMMERCIAL                                                                              ,NEOPOST LTD - FRANKING TOP UPS,BA0000274739,"6,926.75",
BIS,The Insolvency Service,02/04/2014,Postage,BUSINESS SERVICES DIRECTORATE                                                                       ,NEOPOST LTD - FRANKING TOP UPS,BA0000273980,800,
BIS,The Insolvency Service,02/04/2014,Postage,INFORMATION TECHNOLOGY                                                                              ,NEOPOST LTD - FRANKING TOP UPS,BA0000273980,"1,000.00",
BIS,The Insolvency Service,02/04/2014,Postage,INFORMATION TECHNOLOGY                                                                              ,NEOPOST LTD - FRANKING TOP UPS,BA0000273980,"5,000.00",
BIS,The Insolvency Service,02/04/2014,Postage,OFFICIAL RECEIVER SERVICES                                                                          ,NEOPOST LTD - FRANKING TOP UPS,BA0000273980,150,
BIS,The Insolvency Service,02/04/2014,Postage,OFFICIAL RECEIVER SERVICES                                                                          ,NEOPOST LTD - FRANKING TOP UPS,BA0000273980,182,
BIS,The Insolvency Service,02/04/2014,Postage,OFFICIAL RECEIVER SERVICES                                                                          ,NEOPOST LTD - FRANKING TOP UPS,BA0000273980,200,
BIS,The Insolvency Service,02/04/2014,Postage,OFFICIAL RECEIVER SERVICES                                                                          ,NEOPOST LTD - FRANKING TOP UPS,BA0000273980,205,
BIS,The Insolvency Service,02/04/2014,Postage,OFFICIAL RECEIVER SERVICES                                                                          ,NEOPOST LTD - FRANKING TOP UPS,BA0000273980,243,
BIS,The Insolvency Service,02/04/2014,Postage,OFFICIAL RECEIVER SERVICES                                                                          ,NEOPOST LTD - FRANKING TOP UPS,BA0000273980,295,
BIS,The Insolvency Service,02/04/2014,Postage,OFFICIAL RECEIVER SERVICES                                                                          ,NEOPOST LTD - FRANKING TOP UPS,BA0000273980,500,
BIS,The Insolvency Service,02/04/2014,Postage,OFFICIAL RECEIVER SERVICES                                                                          ,NEOPOST LTD - FRANKING TOP UPS,BA0000273980,500,
BIS,The Insolvency Service,02/04/2014,Postage,OFFICIAL RECEIVER SERVICES                                                                          ,NEOPOST LTD - FRANKING TOP UPS,BA0000273980,518,
BIS,The Insolvency Service,02/04/2014,Postage,OFFICIAL RECEIVER SERVICES                                                                          ,NEOPOST LTD - FRANKING TOP UPS,BA0000273980,657,
BIS,The Insolvency Service,02/04/2014,Postage,OFFICIAL RECEIVER SERVICES                                                                          ,NEOPOST LTD - FRANKING TOP UPS,BA0000273980,900,
BIS,The Insolvency Service,02/04/2014,Postage,OFFICIAL RECEIVER SERVICES                                                                          ,NEOPOST LTD - FRANKING TOP UPS,BA0000273980,"1,000.00",
BIS,The Insolvency Service,11/04/2014,Postage,BUSINESS SERVICES DIRECTORATE                                                                       ,NEOPOST LTD - FRANKING TOP UPS,BA0000274442,800,
BIS,The Insolvency Service,11/04/2014,Postage,INFORMATION TECHNOLOGY                                                                              ,NEOPOST LTD - FRANKING TOP UPS,BA0000274442,"5,000.00",
BIS,The Insolvency Service,11/04/2014,Postage,OFFICIAL RECEIVER SERVICES                                                                          ,NEOPOST LTD - FRANKING TOP UPS,BA0000274442,50,
BIS,The Insolvency Service,11/04/2014,Postage,OFFICIAL RECEIVER SERVICES                                                                          ,NEOPOST LTD - FRANKING TOP UPS,BA0000274442,150,
BIS,The Insolvency Service,11/04/2014,Postage,OFFICIAL RECEIVER SERVICES                                                                          ,NEOPOST LTD - FRANKING TOP UPS,BA0000274442,182,
BIS,The Insolvency Service,11/04/2014,Postage,OFFICIAL RECEIVER SERVICES                                                                          ,NEOPOST LTD - FRANKING TOP UPS,BA0000274442,200,
BIS,The Insolvency Service,11/04/2014,Postage,OFFICIAL RECEIVER SERVICES                                                                          ,NEOPOST LTD - FRANKING TOP UPS,BA0000274442,205,
BIS,The Insolvency Service,11/04/2014,Postage,OFFICIAL RECEIVER SERVICES                                                                          ,NEOPOST LTD - FRANKING TOP UPS,BA0000274442,230,
BIS,The Insolvency Service,11/04/2014,Postage,OFFICIAL RECEIVER SERVICES                                                                          ,NEOPOST LTD - FRANKING TOP UPS,BA0000274442,243,
BIS,The Insolvency Service,11/04/2014,Postage,OFFICIAL RECEIVER SERVICES                                                                          ,NEOPOST LTD - FRANKING TOP UPS,BA0000274442,270,
BIS,The Insolvency Service,11/04/2014,Postage,OFFICIAL RECEIVER SERVICES                                                                          ,NEOPOST LTD - FRANKING TOP UPS,BA0000274442,295,
BIS,The Insolvency Service,11/04/2014,Postage,OFFICIAL RECEIVER SERVICES                                                                          ,NEOPOST LTD - FRANKING TOP UPS,BA0000274442,500,
BIS,The Insolvency Service,11/04/2014,Postage,OFFICIAL RECEIVER SERVICES                                                                          ,NEOPOST LTD - FRANKING TOP UPS,BA0000274442,500,
BIS,The Insolvency Service,11/04/2014,Postage,OFFICIAL RECEIVER SERVICES                                                                          ,NEOPOST LTD - FRANKING TOP UPS,BA0000274442,500,
BIS,The Insolvency Service,11/04/2014,Postage,OFFICIAL RECEIVER SERVICES                                                                          ,NEOPOST LTD - FRANKING TOP UPS,BA0000274442,518,
BIS,The Insolvency Service,11/04/2014,Postage,OFFICIAL RECEIVER SERVICES                                                                          ,NEOPOST LTD - FRANKING TOP UPS,BA0000274442,600,
BIS,The Insolvency Service,11/04/2014,Postage,OFFICIAL RECEIVER SERVICES                                                                          ,NEOPOST LTD - FRANKING TOP UPS,BA0000274442,657,
BIS,The Insolvency Service,11/04/2014,Postage,OFFICIAL RECEIVER SERVICES                                                                          ,NEOPOST LTD - FRANKING TOP UPS,BA0000274442,700,
BIS,The Insolvency Service,11/04/2014,Postage,OFFICIAL RECEIVER SERVICES                                                                          ,NEOPOST LTD - FRANKING TOP UPS,BA0000274442,900,
BIS,The Insolvency Service,11/04/2014,Postage,OFFICIAL RECEIVER SERVICES                                                                          ,NEOPOST LTD - FRANKING TOP UPS,BA0000274442,"1,000.00",
BIS,The Insolvency Service,11/04/2014,Postage,OFFICIAL RECEIVER SERVICES                                                                          ,NEOPOST LTD - FRANKING TOP UPS,BA0000274442,"1,000.00",
BIS,The Insolvency Service,11/04/2014,Postage,OFFICIAL RECEIVER SERVICES                                                                          ,NEOPOST LTD - FRANKING TOP UPS,BA0000274442,"1,000.00",
BIS,The Insolvency Service,11/04/2014,Postage,OFFICIAL RECEIVER SERVICES                                                                          ,NEOPOST LTD - FRANKING TOP UPS,BA0000274442,"1,000.00",
BIS,The Insolvency Service,11/04/2014,Postage,OFFICIAL RECEIVER SERVICES                                                                          ,NEOPOST LTD - FRANKING TOP UPS,BA0000274442,"1,000.00",
BIS,The Insolvency Service,23/04/2014,Postage,BUSINESS SERVICES DIRECTORATE                                                                       ,NEOPOST LTD - FRANKING TOP UPS,BA0000274641,800,
BIS,The Insolvency Service,23/04/2014,Postage,INFORMATION TECHNOLOGY                                                                              ,NEOPOST LTD - FRANKING TOP UPS,BA0000274641,"1,000.00",
BIS,The Insolvency Service,23/04/2014,Postage,OFFICIAL RECEIVER SERVICES                                                                          ,NEOPOST LTD - FRANKING TOP UPS,BA0000274641,150,
BIS,The Insolvency Service,23/04/2014,Postage,OFFICIAL RECEIVER SERVICES                                                                          ,NEOPOST LTD - FRANKING TOP UPS,BA0000274641,200,
BIS,The Insolvency Service,23/04/2014,Postage,OFFICIAL RECEIVER SERVICES                                                                          ,NEOPOST LTD - FRANKING TOP UPS,BA0000274641,200,
BIS,The Insolvency Service,23/04/2014,Postage,OFFICIAL RECEIVER SERVICES                                                                          ,NEOPOST LTD - FRANKING TOP UPS,BA0000274641,205,
BIS,The Insolvency Service,23/04/2014,Postage,OFFICIAL RECEIVER SERVICES                                                                          ,NEOPOST LTD - FRANKING TOP UPS,BA0000274641,230,
BIS,The Insolvency Service,23/04/2014,Postage,OFFICIAL RECEIVER SERVICES                                                                          ,NEOPOST LTD - FRANKING TOP UPS,BA0000274641,270,
BIS,The Insolvency Service,23/04/2014,Postage,OFFICIAL RECEIVER SERVICES                                                                          ,NEOPOST LTD - FRANKING TOP UPS,BA0000274641,295,
BIS,The Insolvency Service,23/04/2014,Postage,OFFICIAL RECEIVER SERVICES                                                                          ,NEOPOST LTD - FRANKING TOP UPS,BA0000274641,295,
BIS,The Insolvency Service,23/04/2014,Postage,OFFICIAL RECEIVER SERVICES                                                                          ,NEOPOST LTD - FRANKING TOP UPS,BA0000274641,300,
BIS,The Insolvency Service,23/04/2014,Postage,OFFICIAL RECEIVER SERVICES                                                                          ,NEOPOST LTD - FRANKING TOP UPS,BA0000274641,600,
BIS,The Insolvency Service,23/04/2014,Postage,OFFICIAL RECEIVER SERVICES                                                                          ,NEOPOST LTD - FRANKING TOP UPS,BA0000274641,700,
BIS,The Insolvency Service,23/04/2014,Postage,OFFICIAL RECEIVER SERVICES                                                                          ,NEOPOST LTD - FRANKING TOP UPS,BA0000274641,"1,000.00",
BIS,The Insolvency Service,23/04/2014,Postage,OFFICIAL RECEIVER SERVICES                                                                          ,NEOPOST LTD - FRANKING TOP UPS,BA0000274641,"1,000.00",
BIS,The Insolvency Service,23/04/2014,Postage,OFFICIAL RECEIVER SERVICES                                                                          ,NEOPOST LTD - FRANKING TOP UPS,BA0000274641,"1,000.00",
BIS,The Insolvency Service,29/04/2014,Postage,BUSINESS SERVICES DIRECTORATE                                                                       ,NEOPOST LTD - FRANKING TOP UPS,BA0000274794,200,
BIS,The Insolvency Service,29/04/2014,Postage,BUSINESS SERVICES DIRECTORATE                                                                       ,NEOPOST LTD - FRANKING TOP UPS,BA0000274794,800,
BIS,The Insolvency Service,29/04/2014,Postage,INFORMATION TECHNOLOGY                                                                              ,NEOPOST LTD - FRANKING TOP UPS,BA0000274794,"5,000.00",
BIS,The Insolvency Service,29/04/2014,Postage,OFFICIAL RECEIVER SERVICES                                                                          ,NEOPOST LTD - FRANKING TOP UPS,BA0000274794,135,
BIS,The Insolvency Service,29/04/2014,Postage,OFFICIAL RECEIVER SERVICES                                                                          ,NEOPOST LTD - FRANKING TOP UPS,BA0000274794,230,
BIS,The Insolvency Service,29/04/2014,Postage,OFFICIAL RECEIVER SERVICES                                                                          ,NEOPOST LTD - FRANKING TOP UPS,BA0000274794,270,
BIS,The Insolvency Service,29/04/2014,Postage,OFFICIAL RECEIVER SERVICES                                                                          ,NEOPOST LTD - FRANKING TOP UPS,BA0000274794,365,
BIS,The Insolvency Service,29/04/2014,Postage,OFFICIAL RECEIVER SERVICES                                                                          ,NEOPOST LTD - FRANKING TOP UPS,BA0000274794,500,
BIS,The Insolvency Service,29/04/2014,Postage,OFFICIAL RECEIVER SERVICES                                                                          ,NEOPOST LTD - FRANKING TOP UPS,BA0000274794,900,
BIS,The Insolvency Service,07/04/2014,Agency Workers,FINANCE AND COMMERCIAL,NETWORKERS INTERNATIONAL PLC,BA0000274197,"3,243.30",766375002
BIS,The Insolvency Service,07/04/2014,Agency Workers,FINANCE AND COMMERCIAL,NETWORKERS INTERNATIONAL PLC,BA0000274199,"3,243.30",766375002
BIS,The Insolvency Service,07/04/2014,Agency Workers,"PLANNING, PERFORMANCE & PROJECTS                                                                    ",NETWORKERS INTERNATIONAL PLC,BA0000274196,"2,162.22",766375002
BIS,The Insolvency Service,09/04/2014,Agency Workers,Change and Workplace Services,NETWORKERS INTERNATIONAL PLC,BA0000274321,569.6,766375002
BIS,The Insolvency Service,11/04/2014,Agency Workers,FINANCE AND COMMERCIAL,NETWORKERS INTERNATIONAL PLC,BA0000274450,"3,243.30",766375002
BIS,The Insolvency Service,14/04/2014,Agency Workers,Change and Workplace Services,NETWORKERS INTERNATIONAL PLC,BA0000274467,"2,848.02",766375002
BIS,The Insolvency Service,23/04/2014,Agency Workers,Change and Workplace Services,NETWORKERS INTERNATIONAL PLC,BA0000274637,"2,848.02",766375002
BIS,The Insolvency Service,23/04/2014,Agency Workers,FINANCE AND COMMERCIAL,NETWORKERS INTERNATIONAL PLC,BA0000274636,"1,945.98",766375002
BIS,The Insolvency Service,23/04/2014,Agency Workers,FINANCE AND COMMERCIAL,NETWORKERS INTERNATIONAL PLC,BA0000274639,"3,243.30",766375002
BIS,The Insolvency Service,23/04/2014,Agency Workers,"PLANNING, PERFORMANCE & PROJECTS                                                                    ",NETWORKERS INTERNATIONAL PLC,BA0000274638,"2,162.22",766375002
BIS,The Insolvency Service,01/04/2014,Accommodation,ESTATES,NEWCASTLE CITY COUNCIL,BA0000273915,"50,610.00",
BIS,The Insolvency Service,01/04/2014,Accommodation,ESTATES,NEWCASTLE CITY COUNCIL (BID LEVY),BA0000273923,"1,081.50",
BIS,The Insolvency Service,01/04/2014,Accommodation,ESTATES,NEWCASTLE-UNDER-LYME BOROUGH COUNCIL,BA0000273916,"21,208.00",
BIS,The Insolvency Service,09/04/2014,Accommodation,ESTATES,NEWCASTLE-UNDER-LYME BOROUGH COUNCIL,BA0000274362,237.5,
BIS,The Insolvency Service,01/04/2014,Telecoms,INFORMATION TECHNOLOGY                                                                              ,NINE TELECOM - NINE SERVICES LTD                            ,BA0000273925,"58,868.83",886132113
BIS,The Insolvency Service,01/04/2014,Telecoms,INFORMATION TECHNOLOGY                                                                              ,NINE TELECOM - NINE SERVICES LTD                            ,BA0000273926,"58,868.83",886132113
BIS,The Insolvency Service,01/04/2014,Telecoms,INFORMATION TECHNOLOGY                                                                              ,NINE TELECOM - NINE SERVICES LTD                            ,BA0000273927,"117,172.07",886132113
BIS,The Insolvency Service,15/04/2014,Telecoms,OFFICIAL RECEIVER SERVICES                                                                          ,NINE TELECOM - NINE SERVICES LTD                            ,BA0000274538,"1,500.00",886132113
BIS,The Insolvency Service,02/04/2014,Computer and IT Systems,INFORMATION TECHNOLOGY                                                                              ,NORTHGATE INFORMATION SOLUTIONS UK LTD.,BA0000273974,"10,468.62",207588545
BIS,The Insolvency Service,16/04/2014,Computer and IT Systems,BUSINESS SERVICES DIRECTORATE                                                                       ,NORTHGATE INFORMATION SOLUTIONS UK LTD.,BA0000274602,"34,266.32",207588545
BIS,The Insolvency Service,16/04/2014,Computer and IT Systems,"PLANNING, PERFORMANCE & PROJECTS                                                                    ",NORTHGATE INFORMATION SOLUTIONS UK LTD.,BA0000274603,"10,182.46",207588545
BIS,The Insolvency Service,23/04/2014,Computer and IT Systems,"PLANNING, PERFORMANCE & PROJECTS                                                                    ",NORTHGATE INFORMATION SOLUTIONS UK LTD.,BA0000274654,483,207588545
BIS,The Insolvency Service,01/04/2014,Travel and Subsistence,INVESTIGATION & ENFORCEMENT SERVICES                                                                ,NORWICH AIRPORT                                             ,BA0000274739,10,
BIS,The Insolvency Service,07/04/2014,Accommodation,ESTATES,NORWICH CITY COUNCIL,BA0000274209,"32,535.00",
BIS,The Insolvency Service,03/04/2014,Research Costs,EXTERNAL AFFAIRS                                                                                    ,NOTTINGHAM TRENT UNIVERSITY,BA0000274033,"7,624.00",864460902
BIS,The Insolvency Service,07/04/2014,Accommodation,ESTATES,NPOWER BUSINESS,BA0000274201,"1,665.22",768362492
BIS,The Insolvency Service,07/04/2014,Accommodation,ESTATES,NPOWER BUSINESS,BA0000274213,"5,279.95",768362492
BIS,The Insolvency Service,11/04/2014,Computer and IT Systems,INFORMATION TECHNOLOGY                                                                              ,ONE BLACK BEAR LIMITED,BA0000274454,87.5,917402243
BIS,The Insolvency Service,07/04/2014,Accounting and Banking,BUSINESS SERVICES DIRECTORATE                                                                       ,ORBIT UK                                                    ,BA0000274217,780,
BIS,The Insolvency Service,25/04/2014,Agency Workers,"PLANNING, PERFORMANCE & PROJECTS                                                                    ",ORGANISATIONAL EFFICIENCY SOLUTIONS LTD                     ,BA0000274698,"9,772.64",121390250
BIS,The Insolvency Service,01/04/2014,Travel and Subsistence,EXTERNAL AFFAIRS                                                                                    ,OYSTER AUTO TOP UP,BA0000274739,20,
BIS,The Insolvency Service,01/04/2014,Travel and Subsistence,OFFICIAL RECEIVER SERVICES                                                                          ,OYSTER AUTO TOP UP,BA0000274739,20,
BIS,The Insolvency Service,01/04/2014,Travel and Subsistence,"PLANNING, PERFORMANCE & PROJECTS                                                                    ",OYSTER AUTO TOP UP,BA0000274739,20,
BIS,The Insolvency Service,01/04/2014,Travel and Subsistence,EXTERNAL AFFAIRS                                                                                    ,OYSTER AUTO TOP UP,BA0000274739,20,
BIS,The Insolvency Service,01/04/2014,Travel and Subsistence,OFFICIAL RECEIVER SERVICES                                                                          ,OYSTER AUTO TOP UP,BA0000274739,20,
BIS,The Insolvency Service,01/04/2014,Travel and Subsistence,EXTERNAL AFFAIRS                                                                                    ,OYSTER AUTO TOP UP,BA0000274739,20,
BIS,The Insolvency Service,01/04/2014,Travel and Subsistence,EXTERNAL AFFAIRS                                                                                    ,OYSTER AUTO TOP UP,BA0000274739,20,
BIS,The Insolvency Service,01/04/2014,Travel and Subsistence,OFFICIAL RECEIVER SERVICES                                                                          ,OYSTER AUTO TOP UP,BA0000274739,20,
BIS,The Insolvency Service,01/04/2014,Travel and Subsistence,OFFICIAL RECEIVER SERVICES                                                                          ,OYSTER AUTO TOP UP,BA0000274739,20,
BIS,The Insolvency Service,01/04/2014,Travel and Subsistence,OFFICIAL RECEIVER SERVICES                                                                          ,OYSTER AUTO TOP UP,BA0000274739,20,
BIS,The Insolvency Service,01/04/2014,Computer and IT Systems,FINANCE AND COMMERCIAL,PAESSLER AG,BA0000274739,298.66,217564187
BIS,The Insolvency Service,01/04/2014,Training Costs,FINANCE AND COMMERCIAL,PAESSLER AG,BA0000274739,8.21,217564187
BIS,The Insolvency Service,14/04/2014,Insolvency Case Related Costs,OFFICIAL RECEIVER SERVICES                                                                          ,PARCELFORCE WORLDWIDE,BA0000274506,"1,053.66",243170002
BIS,The Insolvency Service,01/04/2014,Postage,BUSINESS SERVICES DIRECTORATE                                                                       ,PARCELFORCE WORLDWIDE,BA0000274739,12.92,243170002
BIS,The Insolvency Service,16/04/2014,Computer and IT Systems,INFORMATION TECHNOLOGY                                                                              ,PARITY RESOURCES LTD,BA0000274589,119.4,649913985
BIS,The Insolvency Service,01/04/2014,Travel and Subsistence,OFFICIAL RECEIVER SERVICES                                                                          ,PAYBYPHONE PARKING,BA0000274739,6.2,
BIS,The Insolvency Service,01/04/2014,Travel and Subsistence,OFFICIAL RECEIVER SERVICES                                                                          ,PAYBYPHONE PARKING,BA0000274739,6.2,
BIS,The Insolvency Service,01/04/2014,Travel and Subsistence,OFFICIAL RECEIVER SERVICES                                                                          ,PAYBYPHONE PARKING,BA0000274739,6.2,
BIS,The Insolvency Service,01/04/2014,Travel and Subsistence,OFFICIAL RECEIVER SERVICES                                                                          ,PAYBYPHONE PARKING,BA0000274739,6.2,
BIS,The Insolvency Service,16/04/2014,Office Supplies and Services,OFFICIAL RECEIVER SERVICES                                                                          ,PHILPOTTS      ,BA0000274593,171,
BIS,The Insolvency Service,07/04/2014,Computer and IT Systems,INFORMATION TECHNOLOGY                                                                              ,PITNEY BOWES SOFTWARE LTD,BA0000274195,"2,676.00",669468471
BIS,The Insolvency Service,01/04/2014,Computer and IT Systems,BUSINESS SERVICES DIRECTORATE                                                                       ,PLUSNET PLC,BA0000274739,34.19,
BIS,The Insolvency Service,01/04/2014,Office Supplies and Services,"PLANNING, PERFORMANCE & PROJECTS                                                                    ",POST AND PACKING LTD                                        ,BA0000274739,43.14,
BIS,The Insolvency Service,01/04/2014,Postage,OFFICIAL RECEIVER SERVICES                                                                          ,POST OFFICE LTD,BA0000274739,59.16,
BIS,The Insolvency Service,01/04/2014,Employee Related Costs,PEOPLE & CAPABILITY                                                                                 ,POSTURITE (UK) LTD.,BA0000274739,755.57,
BIS,The Insolvency Service,01/04/2014,Employee Related Costs,PEOPLE & CAPABILITY                                                                                 ,POSTURITE (UK) LTD.,BA0000274739,829.25,
BIS,The Insolvency Service,01/04/2014,Employee Related Costs,PEOPLE & CAPABILITY                                                                                 ,POSTURITE (UK) LTD.,BA0000274739,38.05,
BIS,The Insolvency Service,04/04/2014,Accounting and Banking,FINANCE AND COMMERCIAL,PPS,BA0000274106,864.18,
BIS,The Insolvency Service,04/04/2014,Accounting and Banking,FINANCE AND COMMERCIAL,PPS,BA0000274106,"2,521.61",
BIS,The Insolvency Service,01/04/2014,Office Supplies and Services,CUSTOMER AND COMMUNICATIONS                                                                         ,PS993176                                                    ,BA0000274739,941.98,
BIS,The Insolvency Service,14/04/2014,Training Costs,PEOPLE & CAPABILITY                                                                                 ,R3,BA0000274507,"1,239.96",577549778
BIS,The Insolvency Service,15/04/2014,Training Costs,PEOPLE & CAPABILITY                                                                                 ,R3,BA0000274548,85,577549778
BIS,The Insolvency Service,11/04/2014,Computer and IT Systems,INFORMATION TECHNOLOGY                                                                              ,RE THINK RECRUITMENT SOLUTIONS LTD,BA0000274438,"12,086.45",905139440
BIS,The Insolvency Service,01/04/2014,Employee Related Costs,PEOPLE & CAPABILITY                                                                                 ,RNIB,BA0000274739,109.44,524455845
BIS,The Insolvency Service,07/04/2014,Training Costs,"PLANNING, PERFORMANCE & PROJECTS                                                                    ",ROFFEY PARK INSTITUTE LIMITED,BA0000274218,-52.2,
BIS,The Insolvency Service,07/04/2014,Training Costs,"PLANNING, PERFORMANCE & PROJECTS                                                                    ",ROFFEY PARK INSTITUTE LIMITED,BA0000274219,570.17,
BIS,The Insolvency Service,01/04/2014,Insolvency Case Related Costs,OFFICIAL RECEIVER SERVICES                                                                          ,ROLLS BUILDING,BA0000274739,70,
BIS,The Insolvency Service,01/04/2014,Insolvency Case Related Costs,OFFICIAL RECEIVER SERVICES                                                                          ,ROLLS BUILDING,BA0000274739,465,
BIS,The Insolvency Service,23/04/2014,Telecoms,ESTATES,ROWLAND JONES CHARTERED SURVEYORS,BA0000274618,75.6,933478990
BIS,The Insolvency Service,01/04/2014,Insolvency Case Related Costs,OFFICIAL RECEIVER SERVICES                                                                          ,ROYAL MAIL,BA0000273906,"13,560.00",
BIS,The Insolvency Service,25/04/2014,Insolvency Case Related Costs,OFFICIAL RECEIVER SERVICES                                                                          ,ROYAL MAIL GROUP LTD,BA0000274717,98.12,243170002
BIS,The Insolvency Service,01/04/2014,Postage,"PLANNING, PERFORMANCE & PROJECTS                                                                    ",ROYAL MAIL GROUP LTD,BA0000274739,700,243170002
BIS,The Insolvency Service,02/04/2014,Postage,OFFICIAL RECEIVER SERVICES                                                                          ,ROYAL MAIL GROUP LTD,BA0000273977,3.05,243170002
BIS,The Insolvency Service,04/04/2014,Postage,FACILITIES                                                                                          ,ROYAL MAIL GROUP LTD,BA0000274112,66.67,243170002
BIS,The Insolvency Service,07/04/2014,Postage,OFFICIAL RECEIVER SERVICES                                                                          ,ROYAL MAIL GROUP LTD,BA0000274171,179.01,243170002
BIS,The Insolvency Service,11/04/2014,Postage,OFFICIAL RECEIVER SERVICES                                                                          ,ROYAL MAIL GROUP LTD,BA0000274458,83.33,243170002
BIS,The Insolvency Service,11/04/2014,Postage,OFFICIAL RECEIVER SERVICES                                                                          ,ROYAL MAIL GROUP LTD,BA0000274460,787,243170002
BIS,The Insolvency Service,14/04/2014,Postage,FACILITIES                                                                                          ,ROYAL MAIL GROUP LTD,BA0000274491,35.72,243170002
BIS,The Insolvency Service,14/04/2014,Postage,OFFICIAL RECEIVER SERVICES                                                                          ,ROYAL MAIL GROUP LTD,BA0000274489,30.79,243170002
BIS,The Insolvency Service,14/04/2014,Postage,OFFICIAL RECEIVER SERVICES                                                                          ,ROYAL MAIL GROUP LTD,BA0000274489,"1,230.32",243170002
BIS,The Insolvency Service,14/04/2014,Postage,OFFICIAL RECEIVER SERVICES                                                                          ,ROYAL MAIL GROUP LTD,BA0000274496,18.92,243170002
BIS,The Insolvency Service,14/04/2014,Postage,OFFICIAL RECEIVER SERVICES                                                                          ,ROYAL MAIL GROUP LTD,BA0000274496,50.9,243170002
BIS,The Insolvency Service,23/04/2014,Postage,OFFICIAL RECEIVER SERVICES                                                                          ,ROYAL MAIL GROUP LTD,BA0000274662,110.95,243170002
BIS,The Insolvency Service,23/04/2014,Postage,OFFICIAL RECEIVER SERVICES                                                                          ,ROYAL MAIL GROUP LTD,BA0000274655,41.67,243170002
BIS,The Insolvency Service,25/04/2014,Postage,OFFICIAL RECEIVER SERVICES                                                                          ,ROYAL MAIL GROUP LTD,BA0000274680,34.79,243170002
BIS,The Insolvency Service,25/04/2014,Postage,OFFICIAL RECEIVER SERVICES                                                                          ,ROYAL MAIL GROUP LTD,BA0000274681,16.69,243170002
BIS,The Insolvency Service,29/04/2014,Postage,FACILITIES                                                                                          ,ROYAL MAIL GROUP LTD,BA0000274800,42.96,243170002
BIS,The Insolvency Service,29/04/2014,Postage,FACILITIES                                                                                          ,ROYAL MAIL GROUP LTD,BA0000274810,90.86,243170002
BIS,The Insolvency Service,29/04/2014,Postage,OFFICIAL RECEIVER SERVICES                                                                          ,ROYAL MAIL GROUP LTD,BA0000274799,27.08,243170002
BIS,The Insolvency Service,29/04/2014,Postage,OFFICIAL RECEIVER SERVICES                                                                          ,ROYAL MAIL GROUP LTD,BA0000274816,37.41,243170002
BIS,The Insolvency Service,29/04/2014,Postage,OFFICIAL RECEIVER SERVICES                                                                          ,ROYAL MAIL GROUP LTD,BA0000274817,91.67,243170002
BIS,The Insolvency Service,29/04/2014,Postage,OFFICIAL RECEIVER SERVICES                                                                          ,ROYAL MAIL GROUP LTD,BA0000274818,76.53,243170002
BIS,The Insolvency Service,30/04/2014,Postage,OFFICIAL RECEIVER SERVICES                                                                          ,ROYAL MAIL GROUP LTD,BA0000274857,25.05,243170002
BIS,The Insolvency Service,07/04/2014,Accommodation,ESTATES,SAVILLS COMMERCIAL LTD,BA0000274181,"20,000.00",922945804
BIS,The Insolvency Service,07/04/2014,Accommodation,ESTATES,SAVILLS COMMERCIAL LTD,BA0000274182,"5,000.00",922945804
BIS,The Insolvency Service,15/04/2014,Accommodation,ESTATES,SAVILLS COMMERCIAL LTD,BA0000274544,"10,500.00",922945804
BIS,The Insolvency Service,15/04/2014,Accommodation,ESTATES,SAVILLS COMMERCIAL LTD,BA0000274544,"2,794.00",922945804
BIS,The Insolvency Service,29/04/2014,Accommodation,ESTATES,SCOTTISH POWER,BA0000274805,770.97,659372008
BIS,The Insolvency Service,29/04/2014,Accommodation,ESTATES,SCOTTISH POWER,BA0000274819,80.06,659372008
BIS,The Insolvency Service,30/04/2014,Accommodation,ESTATES,SCOTTISH POWER,BA0000274868,973.2,659372008
BIS,The Insolvency Service,30/04/2014,Accommodation,"PLANNING, PERFORMANCE & PROJECTS                                                                    ",SDT INTERNATIONAL LTD,BA0000274502,"-2,519.40",909273609
BIS,The Insolvency Service,30/04/2014,Accommodation,"PLANNING, PERFORMANCE & PROJECTS                                                                    ",SDT INTERNATIONAL LTD,BA0000274495,402,909273609
BIS,The Insolvency Service,02/04/2014,Office Supplies and Services,ESTATES,SELECTA UK LTD,BA0000273969,201.08,911021490
BIS,The Insolvency Service,02/04/2014,Office Supplies and Services,ESTATES,SELECTA UK LTD,BA0000273970,-100.54,911021490
BIS,The Insolvency Service,03/04/2014,Office Supplies and Services,ESTATES,SELECTA UK LTD,BA0000274044,7.46,911021490
BIS,The Insolvency Service,03/04/2014,Office Supplies and Services,ESTATES,SELECTA UK LTD,BA0000274044,34.25,911021490
BIS,The Insolvency Service,03/04/2014,Office Supplies and Services,ESTATES,SELECTA UK LTD,BA0000274044,44.1,911021490
BIS,The Insolvency Service,03/04/2014,Office Supplies and Services,ESTATES,SELECTA UK LTD,BA0000274044,44.15,911021490
BIS,The Insolvency Service,07/04/2014,Accommodation,ESTATES,SEVERN TRENT WATER LIMITED,BA0000274216,464.5,
BIS,The Insolvency Service,29/04/2014,Accommodation,ESTATES,SHEFFIELD CITY COUNCIL,BA0000274801,942,
BIS,The Insolvency Service,04/04/2014,Investigation and Enforcement Costs,INVESTIGATION & ENFORCEMENT SERVICES                                                                ,SIMON BURN SOLICITORS LTD                                   ,BA0000274094,"17,500.00",
BIS,The Insolvency Service,04/04/2014,Insolvency Case Related Costs,OFFICIAL RECEIVER SERVICES                                                                          ,SIRS (EUROPE) LTD,BA0000274124,960,990834974
BIS,The Insolvency Service,04/04/2014,Investigation and Enforcement Costs,INVESTIGATION & ENFORCEMENT SERVICES                                                                ,SIRS (EUROPE) LTD,BA0000274124,200,990834974
BIS,The Insolvency Service,04/04/2014,Investigation and Enforcement Costs,OFFICIAL RECEIVER SERVICES                                                                          ,SIRS (EUROPE) LTD,BA0000274124,150,990834974
BIS,The Insolvency Service,02/04/2014,Agency Workers,"PLANNING, PERFORMANCE & PROJECTS                                                                    ",SPRING TECHNOLOGY STAFFING,BA0000273958,"1,980.00",
BIS,The Insolvency Service,02/04/2014,Agency Workers,"PLANNING, PERFORMANCE & PROJECTS                                                                    ",SPRING TECHNOLOGY STAFFING,BA0000273960,"3,295.14",
BIS,The Insolvency Service,02/04/2014,Agency Workers,CUSTOMER AND COMMUNICATIONS                                                                         ,SPRING TECHNOLOGY STAFFING,BA0000273959,"2,520.00",
BIS,The Insolvency Service,03/04/2014,Agency Workers,"PLANNING, PERFORMANCE & PROJECTS                                                                    ",SPRING TECHNOLOGY STAFFING,BA0000274034,"3,863.10",
BIS,The Insolvency Service,03/04/2014,Agency Workers,"PLANNING, PERFORMANCE & PROJECTS                                                                    ",SPRING TECHNOLOGY STAFFING,BA0000274042,729.3,
BIS,The Insolvency Service,03/04/2014,Agency Workers,"PLANNING, PERFORMANCE & PROJECTS                                                                    ",SPRING TECHNOLOGY STAFFING,BA0000274035,"3,646.50",
BIS,The Insolvency Service,03/04/2014,Agency Workers,"PLANNING, PERFORMANCE & PROJECTS                                                                    ",SPRING TECHNOLOGY STAFFING,BA0000274036,"3,781.38",
BIS,The Insolvency Service,04/04/2014,Agency Workers,"PLANNING, PERFORMANCE & PROJECTS                                                                    ",SPRING TECHNOLOGY STAFFING,BA0000274096,"4,122.30",
BIS,The Insolvency Service,25/04/2014,Agency Workers,CUSTOMER AND COMMUNICATIONS                                                                         ,SPRING TECHNOLOGY STAFFING,BA0000274695,"2,016.00",
BIS,The Insolvency Service,29/04/2014,Agency Workers,CUSTOMER AND COMMUNICATIONS                                                                         ,SPRING TECHNOLOGY STAFFING,BA0000274795,"2,016.00",
BIS,The Insolvency Service,02/04/2014,Computer and IT Systems,INFORMATION TECHNOLOGY                                                                              ,SPRING TECHNOLOGY STAFFING,BA0000273961,"1,707.55",
BIS,The Insolvency Service,09/04/2014,Computer and IT Systems,INFORMATION TECHNOLOGY                                                                              ,SPRING TECHNOLOGY STAFFING,BA0000274356,"1,312.46",
BIS,The Insolvency Service,09/04/2014,Computer and IT Systems,INFORMATION TECHNOLOGY                                                                              ,SPRING TECHNOLOGY STAFFING,BA0000274357,"3,281.16",
BIS,The Insolvency Service,09/04/2014,Computer and IT Systems,INFORMATION TECHNOLOGY                                                                              ,SPRING TECHNOLOGY STAFFING,BA0000274358,"2,845.92",
BIS,The Insolvency Service,15/04/2014,Computer and IT Systems,INFORMATION TECHNOLOGY                                                                              ,SPRING TECHNOLOGY STAFFING,BA0000274539,"2,845.92",
BIS,The Insolvency Service,15/04/2014,Computer and IT Systems,INFORMATION TECHNOLOGY                                                                              ,SPRING TECHNOLOGY STAFFING,BA0000274542,"3,281.16",
BIS,The Insolvency Service,25/04/2014,Computer and IT Systems,INFORMATION TECHNOLOGY                                                                              ,SPRING TECHNOLOGY STAFFING,BA0000274696,"2,624.93",
BIS,The Insolvency Service,29/04/2014,Computer and IT Systems,INFORMATION TECHNOLOGY                                                                              ,SPRING TECHNOLOGY STAFFING,BA0000274796,"2,419.03",
BIS,The Insolvency Service,29/04/2014,Computer and IT Systems,INFORMATION TECHNOLOGY                                                                              ,SPRING TECHNOLOGY STAFFING,BA0000274797,"3,937.39",
BIS,The Insolvency Service,30/04/2014,Computer and IT Systems,INFORMATION TECHNOLOGY                                                                              ,SPRING TECHNOLOGY STAFFING,BA0000274881,"2,419.03",
BIS,The Insolvency Service,29/04/2014,Employee Related Costs,PEOPLE & CAPABILITY                                                                                 ,SPRING TECHNOLOGY STAFFING,BA0000274776,"8,250.00",
BIS,The Insolvency Service,01/04/2014,Accommodation,ESTATES,ST ALBANS CITY & DISTRICT COUNCIL,BA0000273921,"60,250.00",
BIS,The Insolvency Service,16/04/2014,Accounting and Banking,BUSINESS SERVICES DIRECTORATE                                                                       ,Staff Payment,BA0000274587,11.38,
BIS,The Insolvency Service,16/04/2014,Accounting and Banking,BUSINESS SERVICES DIRECTORATE                                                                       ,Staff Payment,BA0000274588,3.88,
BIS,The Insolvency Service,01/04/2014,Employee Related Costs,OFFICIAL RECEIVER SERVICES                                                                          ,Staff Payment,BA0000273930,8,
BIS,The Insolvency Service,02/04/2014,Employee Related Costs,OFFICIAL RECEIVER SERVICES                                                                          ,Staff Payment,BA0000273943,169.4,
BIS,The Insolvency Service,02/04/2014,Employee Related Costs,OFFICIAL RECEIVER SERVICES                                                                          ,Staff Payment,BA0000273943,121.55,
BIS,The Insolvency Service,02/04/2014,Employee Related Costs,OFFICIAL RECEIVER SERVICES                                                                          ,Staff Payment,BA0000273943,167.8,
BIS,The Insolvency Service,02/04/2014,Employee Related Costs,BUSINESS SERVICES DIRECTORATE                                                                       ,Staff Payment,BA0000273943,25.08,
BIS,The Insolvency Service,02/04/2014,Employee Related Costs,CUSTOMER AND COMMUNICATIONS                                                                         ,Staff Payment,BA0000273943,66.6,
BIS,The Insolvency Service,02/04/2014,Employee Related Costs,EXTERNAL AFFAIRS                                                                                    ,Staff Payment,BA0000273943,55,
BIS,The Insolvency Service,02/04/2014,Employee Related Costs,FINANCE AND COMMERCIAL,Staff Payment,BA0000273943,83.6,
BIS,The Insolvency Service,02/04/2014,Employee Related Costs,OFFICIAL RECEIVER SERVICES                                                                          ,Staff Payment,BA0000273943,32.7,
BIS,The Insolvency Service,02/04/2014,Employee Related Costs,OFFICIAL RECEIVER SERVICES                                                                          ,Staff Payment,BA0000273943,24.75,
BIS,The Insolvency Service,02/04/2014,Employee Related Costs,OFFICIAL RECEIVER SERVICES                                                                          ,Staff Payment,BA0000273943,54,
BIS,The Insolvency Service,02/04/2014,Employee Related Costs,OFFICIAL RECEIVER SERVICES                                                                          ,Staff Payment,BA0000273943,440.1,
BIS,The Insolvency Service,02/04/2014,Employee Related Costs,OFFICIAL RECEIVER SERVICES                                                                          ,Staff Payment,BA0000273943,69.2,
BIS,The Insolvency Service,02/04/2014,Employee Related Costs,OFFICIAL RECEIVER SERVICES                                                                          ,Staff Payment,BA0000273943,168.35,
BIS,The Insolvency Service,02/04/2014,Employee Related Costs,OFFICIAL RECEIVER SERVICES                                                                          ,Staff Payment,BA0000273943,142.2,
BIS,The Insolvency Service,02/04/2014,Employee Related Costs,OFFICIAL RECEIVER SERVICES                                                                          ,Staff Payment,BA0000273943,152.62,
BIS,The Insolvency Service,02/04/2014,Employee Related Costs,OFFICIAL RECEIVER SERVICES                                                                          ,Staff Payment,BA0000273943,138,
BIS,The Insolvency Service,02/04/2014,Employee Related Costs,OFFICIAL RECEIVER SERVICES                                                                          ,Staff Payment,BA0000273943,225.8,
BIS,The Insolvency Service,03/04/2014,Employee Related Costs,Director of Operations & Deputy CE                                                                  ,Staff Payment,BA0000274028,79.6,
BIS,The Insolvency Service,03/04/2014,Employee Related Costs,OFFICIAL RECEIVER SERVICES                                                                          ,Staff Payment,BA0000274041,35.44,
BIS,The Insolvency Service,04/04/2014,Employee Related Costs,FINANCE AND COMMERCIAL                                                                              ,Staff Payment,BA0000274111,183.45,
BIS,The Insolvency Service,07/04/2014,Employee Related Costs,OFFICIAL RECEIVER SERVICES                                                                          ,Staff Payment,BA0000274212,140.5,
BIS,The Insolvency Service,07/04/2014,Employee Related Costs,OFFICIAL RECEIVER SERVICES                                                                          ,Staff Payment,BA0000274212,96,
BIS,The Insolvency Service,07/04/2014,Employee Related Costs,OFFICIAL RECEIVER SERVICES                                                                          ,Staff Payment,BA0000274212,118.5,
BIS,The Insolvency Service,07/04/2014,Employee Related Costs,OFFICIAL RECEIVER SERVICES                                                                          ,Staff Payment,BA0000274212,140.5,
BIS,The Insolvency Service,07/04/2014,Employee Related Costs,OFFICIAL RECEIVER SERVICES                                                                          ,Staff Payment,BA0000274212,55.2,
BIS,The Insolvency Service,07/04/2014,Employee Related Costs,OFFICIAL RECEIVER SERVICES                                                                          ,Staff Payment,BA0000274212,108,
BIS,The Insolvency Service,07/04/2014,Employee Related Costs,OFFICIAL RECEIVER SERVICES                                                                          ,Staff Payment,BA0000274212,24.4,
BIS,The Insolvency Service,07/04/2014,Employee Related Costs,OFFICIAL RECEIVER SERVICES                                                                          ,Staff Payment,BA0000274212,101.2,
BIS,The Insolvency Service,07/04/2014,Employee Related Costs,OFFICIAL RECEIVER SERVICES                                                                          ,Staff Payment,BA0000274212,30,
BIS,The Insolvency Service,07/04/2014,Employee Related Costs,OFFICIAL RECEIVER SERVICES                                                                          ,Staff Payment,BA0000274212,82.5,
BIS,The Insolvency Service,07/04/2014,Employee Related Costs,OFFICIAL RECEIVER SERVICES                                                                          ,Staff Payment,BA0000274212,112.8,
BIS,The Insolvency Service,07/04/2014,Employee Related Costs,OFFICIAL RECEIVER SERVICES                                                                          ,Staff Payment,BA0000274212,151.65,
BIS,The Insolvency Service,07/04/2014,Employee Related Costs,OFFICIAL RECEIVER SERVICES                                                                          ,Staff Payment,BA0000274212,105.3,
BIS,The Insolvency Service,07/04/2014,Employee Related Costs,OFFICIAL RECEIVER SERVICES                                                                          ,Staff Payment,BA0000274212,908,
BIS,The Insolvency Service,07/04/2014,Employee Related Costs,OFFICIAL RECEIVER SERVICES                                                                          ,Staff Payment,BA0000274212,162,
BIS,The Insolvency Service,07/04/2014,Employee Related Costs,OFFICIAL RECEIVER SERVICES                                                                          ,Staff Payment,BA0000274212,43.8,
BIS,The Insolvency Service,09/04/2014,Employee Related Costs,FINANCE AND COMMERCIAL                                                                              ,Staff Payment,BA0000274240,38.15,
BIS,The Insolvency Service,09/04/2014,Employee Related Costs,OFFICIAL RECEIVER SERVICES                                                                          ,Staff Payment,BA0000274269,8.4,
BIS,The Insolvency Service,09/04/2014,Employee Related Costs,OFFICIAL RECEIVER SERVICES                                                                          ,Staff Payment,BA0000274269,72.6,
BIS,The Insolvency Service,09/04/2014,Employee Related Costs,OFFICIAL RECEIVER SERVICES                                                                          ,Staff Payment,BA0000274269,54.45,
BIS,The Insolvency Service,09/04/2014,Employee Related Costs,OFFICIAL RECEIVER SERVICES                                                                          ,Staff Payment,BA0000274269,43.2,
BIS,The Insolvency Service,09/04/2014,Employee Related Costs,OFFICIAL RECEIVER SERVICES                                                                          ,Staff Payment,BA0000274269,205.2,
BIS,The Insolvency Service,09/04/2014,Employee Related Costs,PEOPLE & CAPABILITY                                                                                 ,Staff Payment,BA0000274269,116.99,
BIS,The Insolvency Service,09/04/2014,Employee Related Costs,BUSINESS SERVICES DIRECTORATE                                                                       ,Staff Payment,BA0000274269,57,
BIS,The Insolvency Service,09/04/2014,Employee Related Costs,INVESTIGATION & ENFORCEMENT SERVICES                                                                ,Staff Payment,BA0000274269,470.6,
BIS,The Insolvency Service,09/04/2014,Employee Related Costs,INVESTIGATION & ENFORCEMENT SERVICES                                                                ,Staff Payment,BA0000274269,30.8,
BIS,The Insolvency Service,09/04/2014,Employee Related Costs,INVESTIGATION & ENFORCEMENT SERVICES                                                                ,Staff Payment,BA0000274269,66,
BIS,The Insolvency Service,09/04/2014,Employee Related Costs,INVESTIGATION & ENFORCEMENT SERVICES                                                                ,Staff Payment,BA0000274269,118.2,
BIS,The Insolvency Service,09/04/2014,Employee Related Costs,INVESTIGATION & ENFORCEMENT SERVICES                                                                ,Staff Payment,BA0000274269,46.2,
BIS,The Insolvency Service,09/04/2014,Employee Related Costs,OFFICIAL RECEIVER SERVICES                                                                          ,Staff Payment,BA0000274269,30,
BIS,The Insolvency Service,09/04/2014,Employee Related Costs,OFFICIAL RECEIVER SERVICES                                                                          ,Staff Payment,BA0000274269,78.55,
BIS,The Insolvency Service,09/04/2014,Employee Related Costs,OFFICIAL RECEIVER SERVICES                                                                          ,Staff Payment,BA0000274269,18.9,
BIS,The Insolvency Service,09/04/2014,Employee Related Costs,OFFICIAL RECEIVER SERVICES                                                                          ,Staff Payment,BA0000274269,137.6,
BIS,The Insolvency Service,09/04/2014,Employee Related Costs,OFFICIAL RECEIVER SERVICES                                                                          ,Staff Payment,BA0000274269,17,
BIS,The Insolvency Service,09/04/2014,Employee Related Costs,OFFICIAL RECEIVER SERVICES                                                                          ,Staff Payment,BA0000274269,34.8,
BIS,The Insolvency Service,09/04/2014,Employee Related Costs,OFFICIAL RECEIVER SERVICES                                                                          ,Staff Payment,BA0000274269,21,
BIS,The Insolvency Service,09/04/2014,Employee Related Costs,OFFICIAL RECEIVER SERVICES                                                                          ,Staff Payment,BA0000274269,66.55,
BIS,The Insolvency Service,09/04/2014,Employee Related Costs,OFFICIAL RECEIVER SERVICES                                                                          ,Staff Payment,BA0000274269,156.15,
BIS,The Insolvency Service,09/04/2014,Employee Related Costs,OFFICIAL RECEIVER SERVICES                                                                          ,Staff Payment,BA0000274269,143.1,
BIS,The Insolvency Service,09/04/2014,Employee Related Costs,OFFICIAL RECEIVER SERVICES                                                                          ,Staff Payment,BA0000274269,54.95,
BIS,The Insolvency Service,09/04/2014,Employee Related Costs,OFFICIAL RECEIVER SERVICES                                                                          ,Staff Payment,BA0000274269,150,
BIS,The Insolvency Service,09/04/2014,Employee Related Costs,OFFICIAL RECEIVER SERVICES                                                                          ,Staff Payment,BA0000274269,318.75,
BIS,The Insolvency Service,09/04/2014,Employee Related Costs,OFFICIAL RECEIVER SERVICES                                                                          ,Staff Payment,BA0000274269,71.5,
BIS,The Insolvency Service,09/04/2014,Employee Related Costs,OFFICIAL RECEIVER SERVICES                                                                          ,Staff Payment,BA0000274269,79.2,
BIS,The Insolvency Service,09/04/2014,Employee Related Costs,OFFICIAL RECEIVER SERVICES                                                                          ,Staff Payment,BA0000274269,37.38,
BIS,The Insolvency Service,09/04/2014,Employee Related Costs,OFFICIAL RECEIVER SERVICES                                                                          ,Staff Payment,BA0000274269,72.6,
BIS,The Insolvency Service,09/04/2014,Employee Related Costs,OFFICIAL RECEIVER SERVICES                                                                          ,Staff Payment,BA0000274269,74.55,
BIS,The Insolvency Service,09/04/2014,Employee Related Costs,OFFICIAL RECEIVER SERVICES                                                                          ,Staff Payment,BA0000274269,30.12,
BIS,The Insolvency Service,09/04/2014,Employee Related Costs,OFFICIAL RECEIVER SERVICES                                                                          ,Staff Payment,BA0000274269,52.2,
BIS,The Insolvency Service,09/04/2014,Employee Related Costs,OFFICIAL RECEIVER SERVICES                                                                          ,Staff Payment,BA0000274269,189.75,
BIS,The Insolvency Service,09/04/2014,Employee Related Costs,OFFICIAL RECEIVER SERVICES                                                                          ,Staff Payment,BA0000274269,154.5,
BIS,The Insolvency Service,09/04/2014,Employee Related Costs,OFFICIAL RECEIVER SERVICES                                                                          ,Staff Payment,BA0000274269,127,
BIS,The Insolvency Service,09/04/2014,Employee Related Costs,OFFICIAL RECEIVER SERVICES                                                                          ,Staff Payment,BA0000274269,94.6,
BIS,The Insolvency Service,09/04/2014,Employee Related Costs,"PLANNING, PERFORMANCE & PROJECTS",Staff Payment,BA0000274269,35.75,
BIS,The Insolvency Service,14/04/2014,Employee Related Costs,OFFICIAL RECEIVER SERVICES                                                                          ,Staff Payment,BA0000274487,2.4,
BIS,The Insolvency Service,14/04/2014,Employee Related Costs,OFFICIAL RECEIVER SERVICES                                                                          ,Staff Payment,BA0000274302,-813.2,
BIS,The Insolvency Service,16/04/2014,Employee Related Costs,INFORMATION TECHNOLOGY                                                                              ,Staff Payment,BA0000274588,42,
BIS,The Insolvency Service,16/04/2014,Employee Related Costs,INFORMATION TECHNOLOGY                                                                              ,Staff Payment,BA0000274588,42,
BIS,The Insolvency Service,16/04/2014,Employee Related Costs,PEOPLE & CAPABILITY                                                                                 ,Staff Payment,BA0000274587,31.5,
BIS,The Insolvency Service,16/04/2014,Employee Related Costs,OFFICIAL RECEIVER SERVICES                                                                          ,Staff Payment,BA0000274588,5.2,
BIS,The Insolvency Service,16/04/2014,Employee Related Costs,PEOPLE & CAPABILITY                                                                                 ,Staff Payment,BA0000274588,135,
BIS,The Insolvency Service,16/04/2014,Employee Related Costs,PEOPLE & CAPABILITY                                                                                 ,Staff Payment,BA0000274576,205,
BIS,The Insolvency Service,16/04/2014,Employee Related Costs,PEOPLE & CAPABILITY                                                                                 ,Staff Payment,BA0000274587,90,
BIS,The Insolvency Service,16/04/2014,Employee Related Costs,PEOPLE & CAPABILITY                                                                                 ,Staff Payment,BA0000274587,19.95,
BIS,The Insolvency Service,16/04/2014,Employee Related Costs,PEOPLE & CAPABILITY                                                                                 ,Staff Payment,BA0000274587,90,
BIS,The Insolvency Service,16/04/2014,Employee Related Costs,PEOPLE & CAPABILITY                                                                                 ,Staff Payment,BA0000274576,10,
BIS,The Insolvency Service,16/04/2014,Employee Related Costs,PEOPLE & CAPABILITY                                                                                 ,Staff Payment,BA0000274576,69,
BIS,The Insolvency Service,16/04/2014,Employee Related Costs,PEOPLE & CAPABILITY                                                                                 ,Staff Payment,BA0000274576,90,
BIS,The Insolvency Service,16/04/2014,Employee Related Costs,PEOPLE & CAPABILITY                                                                                 ,Staff Payment,BA0000274576,100,
BIS,The Insolvency Service,23/04/2014,Employee Related Costs,BUSINESS SERVICES DIRECTORATE                                                                       ,Staff Payment,BA0000274628,117,
BIS,The Insolvency Service,23/04/2014,Employee Related Costs,OFFICIAL RECEIVER SERVICES                                                                          ,Staff Payment,BA0000274619,90,
BIS,The Insolvency Service,23/04/2014,Employee Related Costs,OFFICIAL RECEIVER SERVICES                                                                          ,Staff Payment,BA0000274628,90,
BIS,The Insolvency Service,25/04/2014,Employee Related Costs,PEOPLE & CAPABILITY                                                                                 ,Staff Payment,BA0000274668,114,
BIS,The Insolvency Service,25/04/2014,Employee Related Costs,PEOPLE & CAPABILITY                                                                                 ,Staff Payment,BA0000274701,110,
BIS,The Insolvency Service,25/04/2014,Employee Related Costs,PEOPLE & CAPABILITY                                                                                 ,Staff Payment,BA0000274701,25,
BIS,The Insolvency Service,25/04/2014,Employee Related Costs,PEOPLE & CAPABILITY                                                                                 ,Staff Payment,BA0000274701,115,
BIS,The Insolvency Service,29/04/2014,Employee Related Costs,PEOPLE & CAPABILITY                                                                                 ,Staff Payment,BA0000274747,20,
BIS,The Insolvency Service,29/04/2014,Employee Related Costs,PEOPLE & CAPABILITY                                                                                 ,Staff Payment,BA0000274747,90,
BIS,The Insolvency Service,29/04/2014,Employee Related Costs,PEOPLE & CAPABILITY                                                                                 ,Staff Payment,BA0000274747,21.95,
BIS,The Insolvency Service,04/04/2014,Insolvency Case Related Costs,INVESTIGATION & ENFORCEMENT SERVICES                                                                ,Staff Payment,BA0000274099,7,
BIS,The Insolvency Service,09/04/2014,Insolvency Case Related Costs,INVESTIGATION & ENFORCEMENT SERVICES                                                                ,Staff Payment,BA0000274253,14,
BIS,The Insolvency Service,09/04/2014,Insolvency Case Related Costs,INVESTIGATION & ENFORCEMENT SERVICES                                                                ,Staff Payment,BA0000274253,7,
BIS,The Insolvency Service,09/04/2014,Insolvency Case Related Costs,INVESTIGATION & ENFORCEMENT SERVICES                                                                ,Staff Payment,BA0000274253,7,
BIS,The Insolvency Service,09/04/2014,Insolvency Case Related Costs,INVESTIGATION & ENFORCEMENT SERVICES                                                                ,Staff Payment,BA0000274327,12,
BIS,The Insolvency Service,09/04/2014,Insolvency Case Related Costs,INVESTIGATION & ENFORCEMENT SERVICES                                                                ,Staff Payment,BA0000274327,7,
BIS,The Insolvency Service,23/04/2014,Insolvency Case Related Costs,INVESTIGATION & ENFORCEMENT SERVICES                                                                ,Staff Payment,BA0000274619,14,
BIS,The Insolvency Service,25/04/2014,Insolvency Case Related Costs,INVESTIGATION & ENFORCEMENT SERVICES                                                                ,Staff Payment,BA0000274701,7,
BIS,The Insolvency Service,30/04/2014,Insolvency Case Related Costs,INVESTIGATION & ENFORCEMENT SERVICES                                                                ,Staff Payment,BA0000274869,26,
BIS,The Insolvency Service,30/04/2014,Insolvency Case Related Costs,INVESTIGATION & ENFORCEMENT SERVICES                                                                ,Staff Payment,BA0000274869,21,
BIS,The Insolvency Service,07/04/2014,Office Supplies and Services,BUSINESS SERVICES DIRECTORATE                                                                       ,Staff Payment,BA0000274210,5,
BIS,The Insolvency Service,14/04/2014,Office Supplies and Services,BUSINESS SERVICES DIRECTORATE                                                                       ,Staff Payment,BA0000274487,5,
BIS,The Insolvency Service,14/04/2014,Office Supplies and Services,BUSINESS SERVICES DIRECTORATE                                                                       ,Staff Payment,BA0000274487,5,
BIS,The Insolvency Service,14/04/2014,Office Supplies and Services,PEOPLE & CAPABILITY                                                                                 ,Staff Payment,BA0000274487,4.3,
BIS,The Insolvency Service,16/04/2014,Office Supplies and Services,BUSINESS SERVICES DIRECTORATE                                                                       ,Staff Payment,BA0000274576,54.94,
BIS,The Insolvency Service,23/04/2014,Office Supplies and Services,INVESTIGATION & ENFORCEMENT SERVICES                                                                ,Staff Payment,BA0000274628,9.74,
BIS,The Insolvency Service,29/04/2014,Office Supplies and Services,EXTERNAL AFFAIRS                                                                                    ,Staff Payment,BA0000274747,7,
BIS,The Insolvency Service,30/04/2014,Office Supplies and Services,OFFICIAL RECEIVER SERVICES                                                                          ,Staff Payment,BA0000274869,7.09,
BIS,The Insolvency Service,30/04/2014,Office Supplies and Services,OFFICIAL RECEIVER SERVICES                                                                          ,Staff Payment,BA0000274869,6.36,
BIS,The Insolvency Service,09/04/2014,Telecoms,INFORMATION TECHNOLOGY                                                                              ,Staff Payment,BA0000274327,25.26,
BIS,The Insolvency Service,14/04/2014,Telecoms,PEOPLE & CAPABILITY                                                                                 ,Staff Payment,BA0000274487,21.04,
BIS,The Insolvency Service,29/04/2014,Telecoms,INFORMATION TECHNOLOGY                                                                              ,Staff Payment,BA0000274789,38.89,
BIS,The Insolvency Service,25/04/2014,Training Costs,PEOPLE & CAPABILITY                                                                                 ,Staff Payment,BA0000274668,108,
BIS,The Insolvency Service,01/04/2014,Travel and Subsistence,PEOPLE & CAPABILITY                                                                                 ,Staff Payment,BA0000273930,8.6,
BIS,The Insolvency Service,01/04/2014,Travel and Subsistence,FINANCE AND COMMERCIAL                                                                              ,Staff Payment,BA0000273930,5,
BIS,The Insolvency Service,01/04/2014,Travel and Subsistence,PEOPLE & CAPABILITY                                                                                 ,Staff Payment,BA0000273930,21.45,
BIS,The Insolvency Service,01/04/2014,Travel and Subsistence,PEOPLE & CAPABILITY                                                                                 ,Staff Payment,BA0000273930,82.39,
BIS,The Insolvency Service,01/04/2014,Travel and Subsistence,BUSINESS SERVICES DIRECTORATE                                                                       ,Staff Payment,BA0000273930,8.9,
BIS,The Insolvency Service,01/04/2014,Travel and Subsistence,BUSINESS SERVICES DIRECTORATE                                                                       ,Staff Payment,BA0000273930,8.5,
BIS,The Insolvency Service,01/04/2014,Travel and Subsistence,INVESTIGATION & ENFORCEMENT SERVICES                                                                ,Staff Payment,BA0000273930,6.2,
BIS,The Insolvency Service,01/04/2014,Travel and Subsistence,INVESTIGATION & ENFORCEMENT SERVICES                                                                ,Staff Payment,BA0000273930,4.4,
BIS,The Insolvency Service,01/04/2014,Travel and Subsistence,INVESTIGATION & ENFORCEMENT SERVICES                                                                ,Staff Payment,BA0000273930,13.8,
BIS,The Insolvency Service,01/04/2014,Travel and Subsistence,INVESTIGATION & ENFORCEMENT SERVICES                                                                ,Staff Payment,BA0000273930,2.8,
BIS,The Insolvency Service,01/04/2014,Travel and Subsistence,OFFICIAL RECEIVER SERVICES                                                                          ,Staff Payment,BA0000273930,3.9,
BIS,The Insolvency Service,01/04/2014,Travel and Subsistence,OFFICIAL RECEIVER SERVICES                                                                          ,Staff Payment,BA0000273930,9,
BIS,The Insolvency Service,01/04/2014,Travel and Subsistence,PEOPLE & CAPABILITY                                                                                 ,Staff Payment,BA0000273930,4.7,
BIS,The Insolvency Service,01/04/2014,Travel and Subsistence,PEOPLE & CAPABILITY                                                                                 ,Staff Payment,BA0000273930,8.9,
BIS,The Insolvency Service,01/04/2014,Travel and Subsistence,"PLANNING, PERFORMANCE & PROJECTS                                                                    ",Staff Payment,BA0000273930,7.3,
BIS,The Insolvency Service,01/04/2014,Travel and Subsistence,"PLANNING, PERFORMANCE & PROJECTS                                                                    ",Staff Payment,BA0000273930,11.2,
BIS,The Insolvency Service,01/04/2014,Travel and Subsistence,BUSINESS SERVICES DIRECTORATE                                                                       ,Staff Payment,BA0000273930,5.4,
BIS,The Insolvency Service,01/04/2014,Travel and Subsistence,INVESTIGATION & ENFORCEMENT SERVICES                                                                ,Staff Payment,BA0000273930,11.5,
BIS,The Insolvency Service,01/04/2014,Travel and Subsistence,INVESTIGATION & ENFORCEMENT SERVICES                                                                ,Staff Payment,BA0000273930,96.3,
BIS,The Insolvency Service,01/04/2014,Travel and Subsistence,INVESTIGATION & ENFORCEMENT SERVICES                                                                ,Staff Payment,BA0000273930,10,
BIS,The Insolvency Service,01/04/2014,Travel and Subsistence,INVESTIGATION & ENFORCEMENT SERVICES                                                                ,Staff Payment,BA0000273930,9,
BIS,The Insolvency Service,01/04/2014,Travel and Subsistence,INVESTIGATION & ENFORCEMENT SERVICES                                                                ,Staff Payment,BA0000273930,82.8,
BIS,The Insolvency Service,01/04/2014,Travel and Subsistence,INVESTIGATION & ENFORCEMENT SERVICES                                                                ,Staff Payment,BA0000273930,4.6,
BIS,The Insolvency Service,01/04/2014,Travel and Subsistence,INVESTIGATION & ENFORCEMENT SERVICES                                                                ,Staff Payment,BA0000273930,13.5,
BIS,The Insolvency Service,01/04/2014,Travel and Subsistence,OFFICIAL RECEIVER SERVICES                                                                          ,Staff Payment,BA0000273930,1,
BIS,The Insolvency Service,01/04/2014,Travel and Subsistence,OFFICIAL RECEIVER SERVICES                                                                          ,Staff Payment,BA0000273930,18.45,
BIS,The Insolvency Service,01/04/2014,Travel and Subsistence,OFFICIAL RECEIVER SERVICES                                                                          ,Staff Payment,BA0000273930,2,
BIS,The Insolvency Service,01/04/2014,Travel and Subsistence,OFFICIAL RECEIVER SERVICES                                                                          ,Staff Payment,BA0000273930,27,
BIS,The Insolvency Service,01/04/2014,Travel and Subsistence,OFFICIAL RECEIVER SERVICES                                                                          ,Staff Payment,BA0000273930,5.4,
BIS,The Insolvency Service,01/04/2014,Travel and Subsistence,OFFICIAL RECEIVER SERVICES                                                                          ,Staff Payment,BA0000273930,1.3,
BIS,The Insolvency Service,01/04/2014,Travel and Subsistence,OFFICIAL RECEIVER SERVICES                                                                          ,Staff Payment,BA0000273930,6.75,
BIS,The Insolvency Service,01/04/2014,Travel and Subsistence,OFFICIAL RECEIVER SERVICES                                                                          ,Staff Payment,BA0000273930,7.6,
BIS,The Insolvency Service,01/04/2014,Travel and Subsistence,OFFICIAL RECEIVER SERVICES                                                                          ,Staff Payment,BA0000273930,20.25,
BIS,The Insolvency Service,01/04/2014,Travel and Subsistence,OFFICIAL RECEIVER SERVICES                                                                          ,Staff Payment,BA0000273930,1,
BIS,The Insolvency Service,01/04/2014,Travel and Subsistence,OFFICIAL RECEIVER SERVICES                                                                          ,Staff Payment,BA0000273930,2.7,
BIS,The Insolvency Service,01/04/2014,Travel and Subsistence,OFFICIAL RECEIVER SERVICES                                                                          ,Staff Payment,BA0000273930,3.5,
BIS,The Insolvency Service,01/04/2014,Travel and Subsistence,OFFICIAL RECEIVER SERVICES                                                                          ,Staff Payment,BA0000273930,4.5,
BIS,The Insolvency Service,01/04/2014,Travel and Subsistence,OFFICIAL RECEIVER SERVICES                                                                          ,Staff Payment,BA0000273930,4.95,
BIS,The Insolvency Service,01/04/2014,Travel and Subsistence,OFFICIAL RECEIVER SERVICES                                                                          ,Staff Payment,BA0000273930,93.6,
BIS,The Insolvency Service,01/04/2014,Travel and Subsistence,OFFICIAL RECEIVER SERVICES                                                                          ,Staff Payment,BA0000273930,8.1,
BIS,The Insolvency Service,01/04/2014,Travel and Subsistence,OFFICIAL RECEIVER SERVICES                                                                          ,Staff Payment,BA0000273930,8.5,
BIS,The Insolvency Service,01/04/2014,Travel and Subsistence,OFFICIAL RECEIVER SERVICES                                                                          ,Staff Payment,BA0000273930,15.75,
BIS,The Insolvency Service,01/04/2014,Travel and Subsistence,PEOPLE & CAPABILITY                                                                                 ,Staff Payment,BA0000273930,19.8,
BIS,The Insolvency Service,01/04/2014,Travel and Subsistence,PEOPLE & CAPABILITY                                                                                 ,Staff Payment,BA0000273930,20,
BIS,The Insolvency Service,01/04/2014,Travel and Subsistence,PEOPLE & CAPABILITY                                                                                 ,Staff Payment,BA0000273930,15.8,
BIS,The Insolvency Service,01/04/2014,Travel and Subsistence,PEOPLE & CAPABILITY                                                                                 ,Staff Payment,BA0000273930,2.5,
BIS,The Insolvency Service,01/04/2014,Travel and Subsistence,"PLANNING, PERFORMANCE & PROJECTS                                                                    ",Staff Payment,BA0000273930,30.2,
BIS,The Insolvency Service,01/04/2014,Travel and Subsistence,"PLANNING, PERFORMANCE & PROJECTS                                                                    ",Staff Payment,BA0000273930,92.7,
BIS,The Insolvency Service,01/04/2014,Travel and Subsistence,"PLANNING, PERFORMANCE & PROJECTS                                                                    ",Staff Payment,BA0000273930,5.5,
BIS,The Insolvency Service,01/04/2014,Travel and Subsistence,"PLANNING, PERFORMANCE & PROJECTS                                                                    ",Staff Payment,BA0000273930,22,
BIS,The Insolvency Service,01/04/2014,Travel and Subsistence,"PLANNING, PERFORMANCE & PROJECTS                                                                    ",Staff Payment,BA0000273930,141.75,
BIS,The Insolvency Service,01/04/2014,Travel and Subsistence,"PLANNING, PERFORMANCE & PROJECTS                                                                    ",Staff Payment,BA0000273930,37.8,
BIS,The Insolvency Service,01/04/2014,Travel and Subsistence,OFFICIAL RECEIVER SERVICES                                                                          ,Staff Payment,BA0000273930,7.5,
BIS,The Insolvency Service,01/04/2014,Travel and Subsistence,"PLANNING, PERFORMANCE & PROJECTS                                                                    ",Staff Payment,BA0000273930,10,
BIS,The Insolvency Service,01/04/2014,Travel and Subsistence,BUSINESS SERVICES DIRECTORATE                                                                       ,Staff Payment,BA0000273930,3.08,
BIS,The Insolvency Service,01/04/2014,Travel and Subsistence,BUSINESS SERVICES DIRECTORATE                                                                       ,Staff Payment,BA0000273930,8.77,
BIS,The Insolvency Service,01/04/2014,Travel and Subsistence,INVESTIGATION & ENFORCEMENT SERVICES                                                                ,Staff Payment,BA0000273930,8.4,
BIS,The Insolvency Service,01/04/2014,Travel and Subsistence,INVESTIGATION & ENFORCEMENT SERVICES                                                                ,Staff Payment,BA0000273930,9.34,
BIS,The Insolvency Service,01/04/2014,Travel and Subsistence,OFFICIAL RECEIVER SERVICES                                                                          ,Staff Payment,BA0000273930,4.79,
BIS,The Insolvency Service,01/04/2014,Travel and Subsistence,OFFICIAL RECEIVER SERVICES                                                                          ,Staff Payment,BA0000273930,5,
BIS,The Insolvency Service,01/04/2014,Travel and Subsistence,OFFICIAL RECEIVER SERVICES                                                                          ,Staff Payment,BA0000273930,3.49,
BIS,The Insolvency Service,01/04/2014,Travel and Subsistence,OFFICIAL RECEIVER SERVICES                                                                          ,Staff Payment,BA0000273930,4.68,
BIS,The Insolvency Service,01/04/2014,Travel and Subsistence,OFFICIAL RECEIVER SERVICES                                                                          ,Staff Payment,BA0000273930,3,
BIS,The Insolvency Service,01/04/2014,Travel and Subsistence,PEOPLE & CAPABILITY                                                                                 ,Staff Payment,BA0000273930,6.61,
BIS,The Insolvency Service,01/04/2014,Travel and Subsistence,PEOPLE & CAPABILITY                                                                                 ,Staff Payment,BA0000273930,33.49,
BIS,The Insolvency Service,01/04/2014,Travel and Subsistence,PEOPLE & CAPABILITY                                                                                 ,Staff Payment,BA0000273930,18.58,
BIS,The Insolvency Service,01/04/2014,Travel and Subsistence,PEOPLE & CAPABILITY                                                                                 ,Staff Payment,BA0000273930,15.59,
BIS,The Insolvency Service,01/04/2014,Travel and Subsistence,PEOPLE & CAPABILITY                                                                                 ,Staff Payment,BA0000273930,15.08,
BIS,The Insolvency Service,01/04/2014,Travel and Subsistence,PEOPLE & CAPABILITY                                                                                 ,Staff Payment,BA0000273930,25,
BIS,The Insolvency Service,01/04/2014,Travel and Subsistence,PEOPLE & CAPABILITY                                                                                 ,Staff Payment,BA0000273930,5,
BIS,The Insolvency Service,01/04/2014,Travel and Subsistence,"PLANNING, PERFORMANCE & PROJECTS                                                                    ",Staff Payment,BA0000273930,8.5,
BIS,The Insolvency Service,01/04/2014,Travel and Subsistence,"PLANNING, PERFORMANCE & PROJECTS                                                                    ",Staff Payment,BA0000273930,8.14,
BIS,The Insolvency Service,01/04/2014,Travel and Subsistence,"PLANNING, PERFORMANCE & PROJECTS                                                                    ",Staff Payment,BA0000273930,5,
BIS,The Insolvency Service,01/04/2014,Travel and Subsistence,"PLANNING, PERFORMANCE & PROJECTS                                                                    ",Staff Payment,BA0000273930,14.89,
BIS,The Insolvency Service,01/04/2014,Travel and Subsistence,"PLANNING, PERFORMANCE & PROJECTS                                                                    ",Staff Payment,BA0000273930,10,
BIS,The Insolvency Service,01/04/2014,Travel and Subsistence,"PLANNING, PERFORMANCE & PROJECTS                                                                    ",Staff Payment,BA0000273930,17.04,
BIS,The Insolvency Service,01/04/2014,Travel and Subsistence,"PLANNING, PERFORMANCE & PROJECTS                                                                    ",Staff Payment,BA0000273930,26.54,
BIS,The Insolvency Service,01/04/2014,Travel and Subsistence,"PLANNING, PERFORMANCE & PROJECTS",Staff Payment,BA0000273930,11.09,
BIS,The Insolvency Service,02/04/2014,Travel and Subsistence,BUSINESS SERVICES DIRECTORATE                                                                       ,Staff Payment,BA0000273953,4,
BIS,The Insolvency Service,02/04/2014,Travel and Subsistence,BUSINESS SERVICES DIRECTORATE                                                                       ,Staff Payment,BA0000273953,42.5,
BIS,The Insolvency Service,02/04/2014,Travel and Subsistence,EXTERNAL AFFAIRS                                                                                    ,Staff Payment,BA0000273953,42,
BIS,The Insolvency Service,02/04/2014,Travel and Subsistence,EXTERNAL AFFAIRS                                                                                    ,Staff Payment,BA0000273953,7,
BIS,The Insolvency Service,02/04/2014,Travel and Subsistence,IG & Agency Chief Executive,Staff Payment,BA0000273953,163,
BIS,The Insolvency Service,02/04/2014,Travel and Subsistence,OFFICIAL RECEIVER SERVICES                                                                          ,Staff Payment,BA0000273953,24.3,
BIS,The Insolvency Service,02/04/2014,Travel and Subsistence,IG & Agency Chief Executive,Staff Payment,BA0000273953,13.2,
BIS,The Insolvency Service,02/04/2014,Travel and Subsistence,IG & Agency Chief Executive,Staff Payment,BA0000273953,27,
BIS,The Insolvency Service,02/04/2014,Travel and Subsistence,INFORMATION TECHNOLOGY                                                                              ,Staff Payment,BA0000273953,8,
BIS,The Insolvency Service,02/04/2014,Travel and Subsistence,INFORMATION TECHNOLOGY                                                                              ,Staff Payment,BA0000273953,210.6,
BIS,The Insolvency Service,02/04/2014,Travel and Subsistence,INFORMATION TECHNOLOGY                                                                              ,Staff Payment,BA0000273953,37.8,
BIS,The Insolvency Service,02/04/2014,Travel and Subsistence,INFORMATION TECHNOLOGY                                                                              ,Staff Payment,BA0000273953,18.9,
BIS,The Insolvency Service,02/04/2014,Travel and Subsistence,INVESTIGATION & ENFORCEMENT SERVICES                                                                ,Staff Payment,BA0000273953,4.1,
BIS,The Insolvency Service,02/04/2014,Travel and Subsistence,INVESTIGATION & ENFORCEMENT SERVICES                                                                ,Staff Payment,BA0000273953,40.5,
BIS,The Insolvency Service,02/04/2014,Travel and Subsistence,INVESTIGATION & ENFORCEMENT SERVICES                                                                ,Staff Payment,BA0000273953,32.85,
BIS,The Insolvency Service,02/04/2014,Travel and Subsistence,INVESTIGATION & ENFORCEMENT SERVICES                                                                ,Staff Payment,BA0000273953,11,
BIS,The Insolvency Service,02/04/2014,Travel and Subsistence,INVESTIGATION & ENFORCEMENT SERVICES                                                                ,Staff Payment,BA0000273953,220.5,
BIS,The Insolvency Service,02/04/2014,Travel and Subsistence,OFFICIAL RECEIVER SERVICES                                                                          ,Staff Payment,BA0000273953,59,
BIS,The Insolvency Service,02/04/2014,Travel and Subsistence,OFFICIAL RECEIVER SERVICES                                                                          ,Staff Payment,BA0000273953,209.25,
BIS,The Insolvency Service,02/04/2014,Travel and Subsistence,OFFICIAL RECEIVER SERVICES                                                                          ,Staff Payment,BA0000273953,12,
BIS,The Insolvency Service,02/04/2014,Travel and Subsistence,OFFICIAL RECEIVER SERVICES                                                                          ,Staff Payment,BA0000273953,16.65,
BIS,The Insolvency Service,02/04/2014,Travel and Subsistence,OFFICIAL RECEIVER SERVICES                                                                          ,Staff Payment,BA0000273953,12,
BIS,The Insolvency Service,02/04/2014,Travel and Subsistence,OFFICIAL RECEIVER SERVICES                                                                          ,Staff Payment,BA0000273953,8,
BIS,The Insolvency Service,02/04/2014,Travel and Subsistence,OFFICIAL RECEIVER SERVICES                                                                          ,Staff Payment,BA0000273953,3.4,
BIS,The Insolvency Service,02/04/2014,Travel and Subsistence,OFFICIAL RECEIVER SERVICES                                                                          ,Staff Payment,BA0000273953,67,
BIS,The Insolvency Service,02/04/2014,Travel and Subsistence,PEOPLE & CAPABILITY                                                                                 ,Staff Payment,BA0000273953,25.99,
BIS,The Insolvency Service,02/04/2014,Travel and Subsistence,IG & Agency Chief Executive,Staff Payment,BA0000273953,24.8,
BIS,The Insolvency Service,02/04/2014,Travel and Subsistence,INVESTIGATION & ENFORCEMENT SERVICES                                                                ,Staff Payment,BA0000273953,17,
BIS,The Insolvency Service,02/04/2014,Travel and Subsistence,OFFICIAL RECEIVER SERVICES                                                                          ,Staff Payment,BA0000273953,4.5,
BIS,The Insolvency Service,02/04/2014,Travel and Subsistence,OFFICIAL RECEIVER SERVICES                                                                          ,Staff Payment,BA0000273953,5,
BIS,The Insolvency Service,02/04/2014,Travel and Subsistence,OFFICIAL RECEIVER SERVICES                                                                          ,Staff Payment,BA0000273953,20,
BIS,The Insolvency Service,02/04/2014,Travel and Subsistence,IG & Agency Chief Executive,Staff Payment,BA0000273953,95.6,
BIS,The Insolvency Service,02/04/2014,Travel and Subsistence,INFORMATION TECHNOLOGY                                                                              ,Staff Payment,BA0000273953,10,
BIS,The Insolvency Service,02/04/2014,Travel and Subsistence,INVESTIGATION & ENFORCEMENT SERVICES                                                                ,Staff Payment,BA0000273953,5,
BIS,The Insolvency Service,02/04/2014,Travel and Subsistence,INVESTIGATION & ENFORCEMENT SERVICES                                                                ,Staff Payment,BA0000273953,19.9,
BIS,The Insolvency Service,02/04/2014,Travel and Subsistence,INVESTIGATION & ENFORCEMENT SERVICES                                                                ,Staff Payment,BA0000273953,3.2,
